{"text_format":"1","workbook":"xlsx","n_sheets":17,"sheets":["Attention","BlankBackground","ProgramSettings","Settings","Startseite","Hilfe","Text DNS","Text Chakren","Analyse","Graphik DNS","Graphik Chakren","data","Heilmittel-Liste","Heilmittel GLOBAL","arszWksRemediesTemplate","arszWksDescriptionsTemplate","Beschreibungen"],"not_rendered":{"charts":3,"images":1,"macros":1,"external_links":0,"defined_names":27,"comments":0,"pivot_tables":0},"unopened":[],"bounds":{"document_bytes":16777216,"sheet_cells":100000,"rows_first":2000,"rows_last":500,"rows_between":2000,"halvings":0,"cell_chars":16384,"cell_head_chars":4096},"cells_cut":0,"cells_raw":0,"read":"whole","date_system":"1900"}

{"sheet":"Attention","index":0,"n_rows":20,"n_cols":4,"rows_kept":20,"cut":false,"hidden":true,"merged":[]}
[null,"ATTENTION!",null,"ACHTUNG!"]
[null,"What do you have to do when opening\nthis Excel workbook for the first time?",null,"Wie müssen Sie beim ersten Öffnen \ndieser Excel-Arbeitsmappe vorgehen?"]
[null,{"$f":"IF(ProgramSettings!C4=\"\",\"\",\"Note: You are using Excel \"&ProgramSettings!C4&\".\")","v":"Note: You are using Excel 2016."},null,{"$f":"IF(ProgramSettings!C4=\"\",\"\",\"Hinweis: Sie verwenden Excel \"&ProgramSettings!C4&\".\")","v":"Hinweis: Sie verwenden Excel 2016."}]
[]
[]
[null,"Microsoft Excel 2003",null,"Microsoft Excel 2003"]
[null,"Option 1: Please click the Tools tab (to find in the top area of the Excel window), and then click \"Macro\" → \"Security...\"! Please ensure that you have selected the option \"Medium Security\" on the \"Security Level\" tab and also checked \"Trust access to Visual Basic Project\" on the \"Trusted Publishers\" tab! Please click the \"OK\" button then to apply your changings! After you have followed these instructions please restart Microsoft Excel (just close and reopen)!\nWhen you reopen this Excel workbook, you should see besides the regular Excel window another one with the title \"Security Warning\". Please click there on \"Enable Macros\"! After that you should have full access to all functions of this workbook.",null,"Variante 1: Stellen Sie sicher, dass Sie in Excel in der Menüleiste unter „Extras“ → „Makro“ → „Sicherheit...“ → Reiter “Sicherheitsstufe“ die Stufe \"Mittel\" ausgewählt und zusätzlich im Reiter \"Vertrauenswürdige Herausgeber\" (in demselben Fenster) einen Haken bei „Zugriff auf Visual Basic-Projekt vertrauen“ gesetzt haben. Um die Änderungen zu übernehmen, bestätigen Sie anschließend bitte mit Klick auf „OK“. Nachdem Sie diese Einstellungen vorgenommen haben, starten Sie Excel bitte neu (einfach schließen und danach wieder öffnen)!\nSobald Sie diese Arbeitsmappe nun erneut öffnen, sollte ein separates Fenster mit dem Titel \"Sicherheitswarnung\" zu sehen sein. Klicken Sie dort bitte auf \"Makros aktivieren\"! Sie sollten nun problemlos alle Funktionen dieser Arbeitsmappe nutzen können."]
[null,"Option 2: The disadvantage of the last option is that every time when you open the file, the window with the title \"Security Warning\" will appear, and that the macros have to be enabled manually once again every file opening (like descriped above). Alternatively, you can choose the setting \"Low Security\" (as substitute for \"Medium Security\") in the Excel options. Hereby, the macros will be activated automatically when opening the excel file (and the window with the security warning will not appear anymore). If you work a lot with Excel files from unknown sources, Option 2 is not recommended. That is because Excel files from unknown sources might contain potentially dangerous source code which is executed automatically with Option 2 when opening the Excel file.",null,"Variante 2: Der Nachteil der vorigen Variante besteht darin, dass nun jedes Mal beim Öffnen der Datei das Fenster mit dem Titel \"Sicherheitswarnung\" erscheint und der Inhalt jedes Mal erneut (wie oben beschrieben) von Hand aktiviert werden muss. Alternativ können Sie in den Excel-Optionen anstatt der Sicherheitsstufe \"Mittel\" auch die Stufe \"Niedrig\" auswählen. Hierdurch werden die Makros beim Öffnen der Datei bereits automatisch aktiviert (und das Fenster mit der Sicherheitswarnung erscheint nicht länger). Sofern Sie häufig mit Excel-Dateien aus fremden Quellen zu tun haben, ist die Variante 2 allerdings nicht zu empfehlen. Dies liegt darin begründet, dass Excel-Dateien von Dritten potentiell gefährlichen Quellcode, der durch Variante 2 beim Öffnen der Datei automatisch ausgeführt wird, enthalten könnten."]
[]
[null,"Microsoft Excel 2007",null,"Microsoft Excel 2007"]
[null,"Option 1: Please click the Microsoft Office Button (to find in the top-left corner of the Excel window), and then click \"Excel Options\" → \"Trust Center\" → \"Trust Center Settings\" → \"Macro Settings\"! Please ensure that you have selected the option \"Disable all macros with notification\" here and also checked \"Trust access to the VBA project object model\"! Please click the \"OK\" button then (twice) to apply your changings! After you have followed these instructions please restart Microsoft Excel (just close and reopen)!\nWhen you reopen this Excel workbook, you should see a bar with the caption \"Security Warning Macros have been disabled\". Please click there on \"Options...\", and then choose \"Enable this content\"! Please confirm by clicking \"OK\"! You should have full access to all functions of this workbook now.",null,"Variante 1: Stellen Sie sicher, dass Sie in Excel im Menü \"Excel-Optionen\" (zu erreichen über den Office-Button links oben in der Ecke) → \"Vertrauensstellungscenter\" → \"Einstellungen für das Vertrauensstellungscenter...\" → \"Einstellungen für Makros\" den Punkt \"Alle Makros mit Benachrichtigung deaktivieren\" ausgewählt und zusätzlich einen Haken bei \"Zugriff auf das VBA-Projektobjektmodell vertrauen\" gesetzt haben! Um die Änderungen zu übernehmen, bestätigen Sie anschließend bitte jeweils mit Klick auf \"OK\" (insgesamt zweimal)! Nachdem Sie diese Einstellungen vorgenommen haben starten Sie Excel bitte neu (einfach schließen und danach wieder öffnen)!\nSobald Sie diese Arbeitsmappe nun erneut öffnen, sollte unter-\nhalb der Excel-Menüleiste ein Balken mit der Aufschrift \"Sicherheitswarnung Makros wurden deaktiviert\" zu sehen sein. Klicken Sie dort bitte auf \"Optionen...\"! Klicken Sie anschließend bitte auf \"Diesen Inhalt aktivieren\" und bestätigen Sie mit \"OK\"! Sie sollten nun problemlos alle Funktionen dieser Arbeitsmappe nutzen können."]
[null,"Option 2: The disadvantage of the last option is that every time when you open the file, the bar with the caption \"Security Warning Macros have been disabled\" will appear, and that the content have to be enabled manually once again every file opening (like descriped above). Alternatively, you can choose the setting \"Enable all macros [...]\" (as substitute for \"Disable all macros with notification\") in the Excel options. Hereby, the contents or rather the macros will be activated automatically when opening the excel file (and the bar with the security warning will not appear anymore). If you work a lot with Excel files from unknown sources, Option 2 is not recommended. That is because Excel files from unknown sources might contain potentially dangerous source code which is executed automatically with Option 2 when opening the Excel file.",null,"Variante 2: Der Nachteil der vorigen Variante besteht darin, dass nun jedes Mal beim Öffnen der Datei der Balken mit der Aufschrift \"Sicherheitswarnung Makros wurden deaktiviert\" erscheint und der Inhalt jedes Mal erneut (wie oben beschrieben) von Hand aktiviert werden muss. Alternativ können Sie in den Excel-Optionen anstatt \"Alle Makros mit Benachrichtigung deaktivieren\" auch den Punkt \"Alle Makros aktivieren [...]\" auswählen. Hierdurch werden die Inhalte bzw. Makros beim Öffnen der Datei bereits automatisch aktiviert (und der Balken mit der Sicherheitswarnung erscheint nicht länger). Sofern Sie häufig mit Excel-Dateien aus fremden Quellen zu tun haben, ist die Variante 2 allerdings nicht zu empfehlen. Dies liegt darin begründet, dass Excel-Dateien von Dritten potentiell gefährlichen Quellcode, der durch Variante 2 beim Öffnen der Datei automatisch ausgeführt wird, enthalten könnten."]
[]
[null,"Microsoft Excel 2010",null,"Microsoft Excel 2010"]
[null,"Option 1: Please click the File tab (to find in the top-left corner of the Excel window), and then click \"Options\" → \"Trust Center\" → \"Trust Center Settings\" → \"Macro Settings\"! Please ensure that you have selected the option \"Disable all macros with notification\" here and also checked \"Trust access to the VBA project object model\"! Please click the \"OK\" button then (twice) to apply your changings! After you have followed these instructions please restart Microsoft Excel (just close and reopen)!\nWhen you reopen this Excel workbook, you should see a bar with the caption \"Security Warning Macros have been disabled\". Please click there on \"Enable Content\"! You should have full access to all functions of this workbook now.",null,"Variante 1: Stellen Sie sicher, dass Sie in Excel im Menü unter \"Datei\" → \"Optionen\" → \"Sicherheitscenter\" → \"Einstellungen für das Sicherheitscenter\" → \"Einstellungen für Makros\" den Punkt \"Alle Makros mit Benachrichtigung deaktivieren\" ausgewählt und zusätzlich einen Haken bei \"Zugriff auf das VBA-Projektobjektmodell vertrauen\" gesetzt haben! Um die Änderungen zu übernehmen, bestätigen Sie anschließend bitte jeweils mit Klick auf \"OK\" (insgesamt zweimal)! Nachdem Sie diese Einstellungen vorgenommen haben starten Sie Excel bitte neu (einfach schließen und danach wieder öffnen)!\nSobald Sie diese Arbeitsmappe nun erneut öffnen, sollte unter-\nhalb der Excel-Menüleiste ein Balken mit der Aufschrift \"Sicherheitswarnung Makros wurden deaktiviert\" (oder in manchen Fällen auch ein separates Fenster mit dem Titel \"Sicherheitshinweis für Microsoft Excel\") zu sehen sein. Klicken Sie dort bitte auf \"Inhalt aktivieren\" (bzw. in dem Fenster auf \"Makros aktivieren\")! Sie sollten nun problemlos alle Funktionen dieser Arbeitsmappe nutzen können."]
[null,"Option 2: The disadvantage of the last option is that every time when you open the file, the bar with the caption \"Security Warning Macros have been disabled\" will appear, and that the content have to be enabled manually once again every file opening (like descriped above). Alternatively, you can choose the setting \"Enable all macros [...]\" (as substitute for \"Disable all macros with notification\") in the Excel options. Hereby, the contents or rather the macros will be activated automatically when opening the excel file (and the bar with the security warning will not appear anymore). If you work a lot with Excel files from unknown sources, Option 2 is not recommended. That is because Excel files from unknown sources might contain potentially dangerous source code which is executed automatically with Option 2 when opening the Excel file.",null,"Variante 2: Der Nachteil der vorigen Variante besteht darin, dass nun jedes Mal beim Öffnen der Datei der Balken mit der Aufschrift \"Sicherheitswarnung [...]\" erscheint und der Inhalt jedes Mal erneut (wie oben beschrieben) von Hand aktiviert werden muss. Alternativ können Sie in den Excel-Optionen anstatt \"Alle Makros mit Benachrichtigung deaktivieren\" auch den Punkt \"Alle Makros aktivieren [...]\" auswählen. Hierdurch werden die Inhalte bzw. Makros beim Öffnen der Datei bereits automatisch aktiviert (und der Balken mit der Sicherheitswarnung erscheint nicht länger). Sofern Sie häufig mit Excel-Dateien aus fremden Quellen zu tun haben, ist die Variante 2 allerdings nicht zu empfehlen. Dies liegt darin begründet, dass Excel-Dateien von Dritten potentiell gefährlichen Quellcode, der durch Variante 2 beim Öffnen der Datei automatisch ausgeführt wird, enthalten könnten."]
[]
[null,"Microsoft Excel 2013",null,"Microsoft Excel 2013/2016"]
[null,"Option 1: Please click the File tab (to find in the top-left corner of the Excel window), and then click \"Options\" → \"Trust Center\" → \"Trust Center Settings\" → \"Macro Settings\"! Please ensure that you have selected the option \"Disable all macros with notification\" here and also checked \"Trust access to the VBA project object model\"! Please click the \"OK\" button then (twice) to apply your changings! After you have followed these instructions please restart Microsoft Excel (just close and reopen)!\nWhen you reopen this Excel workbook, you should see a bar with the caption \"Security Warning Macros have been disabled\". Please click there on \"Enable Content\"! You should have full access to all functions of this workbook now.",null,"Variante 1: Stellen Sie sicher, dass Sie in Excel im Menü unter \"Datei\" → \"Optionen\" → \"Trust Center\" → \"Einstellungen für das Trust Center..\" → \"Makroeinstellungen\" den Punkt \"Alle Makros mit Benachrichtigung deaktivieren\" ausgewählt und zusätzlich einen Haken bei \"Zugriff auf das VBA-Projektobjektmodell vertrauen\" gesetzt haben! Um die Änderungen zu übernehmen, bestätigen Sie anschließend bitte jeweils mit Klick auf \"OK\" (insgesamt zweimal)! Nachdem Sie diese Einstellungen vorgenommen haben starten Sie Excel bitte neu (einfach schließen und danach wieder öffnen)!\nSobald Sie diese Arbeitsmappe nun erneut öffnen, sollte unter-\nhalb der Excel-Menüleiste ein Balken mit der Aufschrift \"SICHERHEITSWARNUNG Makros wurden deaktiviert\" (oder in manchen Fällen auch \"SICHERHEITSWARNUNG Einige aktive Inhalte wurden deaktiviert [...]\") zu sehen sein. Klicken Sie dort bitte auf \"Inhalt aktivieren\"! Sie sollten nun problemlos alle Funktionen dieser Arbeitsmappe nutzen können."]
[null,"Option 2: The disadvantage of the last option is that every time when you open the file, the bar with the caption \"Security Warning Macros have been disabled\" will appear, and that the content have to be enabled manually once again every file opening (like descriped above). Alternatively, you can choose the setting \"Enable all macros [...]\" (as substitute for \"Disable all macros with notification\") in the Excel options. Hereby, the contents or rather the macros will be activated automatically when opening the excel file (and the bar with the security warning will not appear anymore). If you work a lot with Excel files from unknown sources, Option 2 is not recommended. That is because Excel files from unknown sources might contain potentially dangerous source code which is executed automatically with Option 2 when opening the Excel file.",null,"Variante 2: Der Nachteil der vorigen Variante besteht darin, dass nun jedes Mal beim Öffnen der Datei der Balken mit der Aufschrift \"SICHERHEITSWARNUNG [...]\" erscheint und der Inhalt jedes Mal erneut (wie oben beschrieben) von Hand aktiviert werden muss. Alternativ können Sie in den Excel-Optionen anstatt \"Alle Makros mit Benachrichtigung deaktivieren\" auch den Punkt \"Alle Makros aktivieren [...]\" auswählen. Hierdurch werden die Inhalte bzw. Makros beim Öffnen der Datei bereits automatisch aktiviert (und der Balken mit der Sicherheitswarnung erscheint nicht länger). Sofern Sie häufig mit Excel-Dateien aus fremden Quellen zu tun haben, ist die Variante 2 allerdings nicht zu empfehlen. Dies liegt darin begründet, dass Excel-Dateien von Dritten potentiell gefährlichen Quellcode, der durch Variante 2 beim Öffnen der Datei automatisch ausgeführt wird, enthalten könnten."]

{"sheet":"BlankBackground","index":1,"n_rows":0,"n_cols":0,"rows_kept":0,"cut":false,"hidden":true,"merged":[]}

{"sheet":"ProgramSettings","index":2,"n_rows":518,"n_cols":6,"rows_kept":518,"cut":false,"hidden":true,"merged":[[199,2,199,8],[200,2,200,8],[201,2,201,8],[202,2,202,8]]}
["Art der Programmeinstellung/-information","Wert 1","Wert 2","Wert 3"]
["Zeiger zur Wiederherstellung des Objekt-verweises zum IRibbonUI-Objekt (RibbonX):",364989880,"[PLATZHALTER]","[PLATZHALTER]"]
["PC / Mac:",{"$f":"INFO(\"SYSTEM\")","v":"pcdos"},{"$f":"IF($B$3=\"pcdos\",\"Windows\",\"Mac\")","v":"Windows"},"[PLATZHALTER]"]
["Verwendete Excel-Version:",{"$f":"IF(ISERROR($B$5)=FALSE,$B$5,INFO(\"RELEASE\"))","v":"16.0"},{"$f":"IF(ISERROR($C$5)=FALSE,$C$5,\"\")","v":"2016"},"[PLATZHALTER]"]
["Hilfszeile zur Ermittlung der Excel-Version:",{"$f":"INFO(\"VERSION\")","v":"16.0"},{"$f":"VLOOKUP(LEFT($B$4,2),$B$101:$C$198,2,FALSE)","v":"2016"},"[PLATZHALTER]"]
[]
[]
[]
[]
["Versions-Nr. (inkl. Build) dieser Arbeitsmappe:","[PLATZHALTER]","[PLATZHALTER]","[PLATZHALTER]"]
["FileType:","[PLATZHALTER]","[PLATZHALTER]","[PLATZHALTER]"]
["ToolType:","[PLATZHALTER]","[PLATZHALTER]","[PLATZHALTER]"]
[]
[]
["bolUebertragenDone (Heilmittel der Liste bereits übertragen)?","False","[PLATZHALTER]","[PLATZHALTER]"]
["Selektionsfeld in Analyse-Blatt sichtbar?","True","[PLATZHALTER]","[PLATZHALTER]"]
[]
[]
[]
[]
["…","[PLATZHALTER]","[PLATZHALTER]","[PLATZHALTER]"]
[null,null,null,null,"."]
[]
["TabResonanz: Zwischengepeicherte Left-Eigenschaft des shpGroupedButtonShape:",773.25,"[PLATZHALTER]","[PLATZHALTER]"]
["TabResonanz: Zwischengepeicherte Left-Eigenschaft des ActiveX-Controls cboSelektion:",694.5,"[PLATZHALTER]","[PLATZHALTER]"]
["Einstellung der Ribbon-Checkbox \"PDF immer immer aktuellen Verzeichnis speichern\":","True","[PLATZHALTER]","[PLATZHALTER]"]
["Vom Nutzer festgelegter Zoom (in %) für alle Tabellenblätter:",100,"[PLATZHALTER]","[PLATZHALTER]"]
["Vom Nutzer bereits regulierte Stärken- und Schwächen-Tabellenblätter:",null,"[PLATZHALTER]","[PLATZHALTER]"]
["Vollständiger Pfad der zuletzt erzeugten\nPDF-Datei:",null,"[PLATZHALTER]","[PLATZHALTER]"]
["1. Wert: Pfad zum Verzeichnis aus dem der Nutzer zuletzt das Klienten-Bild ausgewählt hat; 2. Wert: Pfad zur temporären Kopie des vom Nutzer eingelesenen Bildes:","D:\\PB's Bilder\\Bewerbungsbilder",null,"[PLATZHALTER]"]
["Webadresse zur Hilfe(-Seite/-Datei) des Resonanz-Tools:","http://www.dns.arandas.info/hilfe/","[PLATZHALTER]","[PLATZHALTER]"]
["Vom Nutzer hinterlegter Vorlagentext für Bemerkungen (die später im PDF auftauchen):",null,"[PLATZHALTER]","[PLATZHALTER]"]
["Vermerk, ob VDH-Blätter in aktueller Sitzung bereits erzeugt wurden. (1. Wert: allgemeines VDH-Blatt. 2. Wert: Heilmittel-bezogene VDH-Blätter.)","False","False","[PLATZHALTER]"]
["Webadresse zur Hilfe(-Seite/-Datei) des ARANDAS Excel-Add-Ins:","http://www.hilfe.arandas.de/besendung.html","[PLATZHALTER]","[PLATZHALTER]"]
["Webadresse zur 'Download'(-Seite/-Datei) des DNS-Tools:","http://www.dns.arandas.info/download/","[PLATZHALTER]","[PLATZHALTER]"]
["Webadresse zur 'Impressum'(-Seite/-Datei):","http://www.arandas.de/impressum/","[PLATZHALTER]","[PLATZHALTER]"]
[]
[]
["CodeName des zuletzt ausgewählten Datenbank-Tabellenblattes | Zweiter Wert ist die ID des jeweiligen DropDown-Eintrages | Dritter Wert ist das Label bzw. der Datenbank-Name des jeweiligen DropDown-Eintrages:",null,null,{"$f":"INDEX(tblImportedDatabases[Anzeigename der hinterlegten Datenbank],MATCH(RIGHT(C39,LEN(C39)-3),tblImportedDatabases[Tabellenblatt-Name],0))","v":{"$error":"#VALUE!"}}]
["Startzeitpunkt der aktuellen Sitzung:","14.05.2018 13:53:50","[PLATZHALTER]","[PLATZHALTER]"]
["Patienten-Titel:","Herr","[PLATZHALTER]","[PLATZHALTER]"]
["Patienten-Vorname:","Max","[PLATZHALTER]","[PLATZHALTER]"]
["Patienten-Nachname:","Mustermann","[PLATZHALTER]","[PLATZHALTER]"]
["Patienten-Geburtsort:","Musterstadt","[PLATZHALTER]","[PLATZHALTER]"]
["Patienten-Geburtsdatum:","20.06.1978","[PLATZHALTER]","[PLATZHALTER]"]
["Patienten-Konzept:",null,"[PLATZHALTER]","[PLATZHALTER]"]
["Patienten-Fokus:",null,"[PLATZHALTER]","[PLATZHALTER]"]
["[RESERVIERT FÜR ZUKÜNFTIGE WEITERE DATEN]",null,"[PLATZHALTER]","[PLATZHALTER]"]
["[RESERVIERT FÜR ZUKÜNFTIGE WEITERE DATEN]",null,"[PLATZHALTER]","[PLATZHALTER]"]
["[RESERVIERT FÜR ZUKÜNFTIGE WEITERE DATEN]",null,"[PLATZHALTER]","[PLATZHALTER]"]
["[RESERVIERT FÜR ZUKÜNFTIGE WEITERE DATEN]",null,"[PLATZHALTER]","[PLATZHALTER]"]
["[RESERVIERT FÜR ZUKÜNFTIGE WEITERE DATEN]",null,"[PLATZHALTER]","[PLATZHALTER]"]
["[RESERVIERT FÜR ZUKÜNFTIGE WEITERE DATEN]",null,"[PLATZHALTER]","[PLATZHALTER]"]
["[RESERVIERT FÜR ZUKÜNFTIGE WEITERE DATEN]",null,"[PLATZHALTER]","[PLATZHALTER]"]
["[RESERVIERT FÜR ZUKÜNFTIGE WEITERE DATEN]",null,"[PLATZHALTER]","[PLATZHALTER]"]
["[RESERVIERT FÜR ZUKÜNFTIGE WEITERE DATEN]",null,"[PLATZHALTER]","[PLATZHALTER]"]
["[RESERVIERT FÜR ZUKÜNFTIGE WEITERE DATEN]",null,"[PLATZHALTER]","[PLATZHALTER]"]
["[RESERVIERT FÜR ZUKÜNFTIGE WEITERE DATEN]",null,"[PLATZHALTER]","[PLATZHALTER]"]
["[RESERVIERT FÜR ZUKÜNFTIGE WEITERE DATEN]",null,"[PLATZHALTER]","[PLATZHALTER]"]
["[RESERVIERT FÜR ZUKÜNFTIGE WEITERE DATEN]",null,"[PLATZHALTER]","[PLATZHALTER]"]
["[RESERVIERT FÜR ZUKÜNFTIGE WEITERE DATEN]",null,"[PLATZHALTER]","[PLATZHALTER]"]
["[RESERVIERT FÜR ZUKÜNFTIGE WEITERE DATEN]",null,"[PLATZHALTER]","[PLATZHALTER]"]
["[RESERVIERT FÜR ZUKÜNFTIGE WEITERE DATEN]",null,"[PLATZHALTER]","[PLATZHALTER]"]
["[RESERVIERT FÜR ZUKÜNFTIGE WEITERE DATEN]",null,"[PLATZHALTER]","[PLATZHALTER]"]
["[RESERVIERT FÜR ZUKÜNFTIGE WEITERE DATEN]",null,"[PLATZHALTER]","[PLATZHALTER]"]
["[RESERVIERT FÜR ZUKÜNFTIGE WEITERE DATEN]",null,"[PLATZHALTER]","[PLATZHALTER]"]
["[RESERVIERT FÜR ZUKÜNFTIGE WEITERE DATEN]",null,"[PLATZHALTER]","[PLATZHALTER]"]
[]
[]
[]
[]
[]
[]
[]
[]
[]
[]
[]
[]
[]
[]
[]
[]
[]
[]
[]
[]
[]
[]
[]
[]
[]
[]
[]
[]
[]
[]
[]
[]
["Excel-Versionsliste","Versions-Nr.","Excel …"]
[{"$f":"\"Excel-Version \"&B101&\":\"","v":"Excel-Version 11:"},"11",{"$f":"IF($B$3=\"pcdos\",\"2003\",\"2004\")","v":"2003"}]
[{"$f":"\"Excel-Version \"&B102&\":\"","v":"Excel-Version 12:"},"12",{"$f":"IF($B$3=\"pcdos\",\"2007\",\"2008\")","v":"2007"}]
["Excel-Version 14:","14",{"$f":"IF($B$3=\"pcdos\",\"2010\",\"2011\")","v":"2010"}]
["Excel-Version 15:","15",{"$f":"IF($B$3=\"pcdos\",\"2013\",\"2016\")","v":"2013"}]
["Excel-Version 16:","16",{"$f":"IF($B$3=\"pcdos\",\"2016\",\"\")","v":"2016"}]
["Excel-Version :",null,"[PLATZHALTER]"]
["Excel-Version :",null,"[PLATZHALTER]"]
["Excel-Version :",null,"[PLATZHALTER]"]
["Excel-Version :",null,"[PLATZHALTER]"]
["Excel-Version :",null,"[PLATZHALTER]"]
["Excel-Version :",null,"[PLATZHALTER]"]
["Excel-Version :",null,"[PLATZHALTER]"]
[{"$f":"\"Excel-Version \"&B113&\":\"","v":"Excel-Version :"},null,"[PLATZHALTER]"]
["Excel-Version :",null,"[PLATZHALTER]"]
["Excel-Version :",null,"[PLATZHALTER]"]
["Excel-Version :",null,"[PLATZHALTER]"]
["Excel-Version :",null,"[PLATZHALTER]"]
["Excel-Version :",null,"[PLATZHALTER]"]
["Excel-Version :",null,"[PLATZHALTER]"]
["Excel-Version :",null,"[PLATZHALTER]"]
["Excel-Version :",null,"[PLATZHALTER]"]
["Excel-Version :",null,"[PLATZHALTER]"]
["Excel-Version :",null,"[PLATZHALTER]"]
["Excel-Version :",null,"[PLATZHALTER]"]
["Excel-Version :",null,"[PLATZHALTER]"]
["Excel-Version :",null,"[PLATZHALTER]"]
["Excel-Version :",null,"[PLATZHALTER]"]
["Excel-Version :",null,"[PLATZHALTER]"]
["Excel-Version :",null,"[PLATZHALTER]"]
["Excel-Version :",null,"[PLATZHALTER]"]
["Excel-Version :",null,"[PLATZHALTER]"]
["Excel-Version :",null,"[PLATZHALTER]"]
["Excel-Version :",null,"[PLATZHALTER]"]
["Excel-Version :",null,"[PLATZHALTER]"]
["Excel-Version :",null,"[PLATZHALTER]"]
["Excel-Version :",null,"[PLATZHALTER]"]
["Excel-Version :",null,"[PLATZHALTER]"]
["Excel-Version :",null,"[PLATZHALTER]"]
["Excel-Version :",null,"[PLATZHALTER]"]
["Excel-Version :",null,"[PLATZHALTER]"]
["Excel-Version :",null,"[PLATZHALTER]"]
["Excel-Version :",null,"[PLATZHALTER]"]
["Excel-Version :",null,"[PLATZHALTER]"]
["Excel-Version :",null,"[PLATZHALTER]"]
["Excel-Version :",null,"[PLATZHALTER]"]
["Excel-Version :",null,"[PLATZHALTER]"]
["Excel-Version :",null,"[PLATZHALTER]"]
["Excel-Version :",null,"[PLATZHALTER]"]
["Excel-Version :",null,"[PLATZHALTER]"]
["Excel-Version :",null,"[PLATZHALTER]"]
["Excel-Version :",null,"[PLATZHALTER]"]
["Excel-Version :",null,"[PLATZHALTER]"]
["Excel-Version :",null,"[PLATZHALTER]"]
["Excel-Version :",null,"[PLATZHALTER]"]
["Excel-Version :",null,"[PLATZHALTER]"]
["Excel-Version :",null,"[PLATZHALTER]"]
["Excel-Version :",null,"[PLATZHALTER]"]
["Excel-Version :",null,"[PLATZHALTER]"]
["Excel-Version :",null,"[PLATZHALTER]"]
["Excel-Version :",null,"[PLATZHALTER]"]
["Excel-Version :",null,"[PLATZHALTER]"]
["Excel-Version :",null,"[PLATZHALTER]"]
["Excel-Version :",null,"[PLATZHALTER]"]
["Excel-Version :",null,"[PLATZHALTER]"]
["Excel-Version :",null,"[PLATZHALTER]"]
[{"$f":"\"Excel-Version \"&B166&\":\"","v":"Excel-Version :"},null,"[PLATZHALTER]"]
["Excel-Version :",null,"[PLATZHALTER]"]
["Excel-Version :",null,"[PLATZHALTER]"]
["Excel-Version :",null,"[PLATZHALTER]"]
["Excel-Version :",null,"[PLATZHALTER]"]
["Excel-Version :",null,"[PLATZHALTER]"]
["Excel-Version :",null,"[PLATZHALTER]"]
["Excel-Version :",null,"[PLATZHALTER]"]
["Excel-Version :",null,"[PLATZHALTER]"]
["Excel-Version :",null,"[PLATZHALTER]"]
["Excel-Version :",null,"[PLATZHALTER]"]
["Excel-Version :",null,"[PLATZHALTER]"]
["Excel-Version :",null,"[PLATZHALTER]"]
["Excel-Version :",null,"[PLATZHALTER]"]
["Excel-Version :",null,"[PLATZHALTER]"]
["Excel-Version :",null,"[PLATZHALTER]"]
["Excel-Version :",null,"[PLATZHALTER]"]
["Excel-Version :",null,"[PLATZHALTER]"]
["Excel-Version :",null,"[PLATZHALTER]"]
["Excel-Version :",null,"[PLATZHALTER]"]
["Excel-Version :",null,"[PLATZHALTER]"]
["Excel-Version :",null,"[PLATZHALTER]"]
["Excel-Version :",null,"[PLATZHALTER]"]
["Excel-Version :",null,"[PLATZHALTER]"]
["Excel-Version :",null,"[PLATZHALTER]"]
["Excel-Version :",null,"[PLATZHALTER]"]
["Excel-Version :",null,"[PLATZHALTER]"]
["Excel-Version :",null,"[PLATZHALTER]"]
["Excel-Version :",null,"[PLATZHALTER]"]
["Excel-Version :",null,"[PLATZHALTER]"]
["Excel-Version :",null,"[PLATZHALTER]"]
["Excel-Version :",null,"[PLATZHALTER]"]
["Excel-Version :",null,"[PLATZHALTER]"]
[]
["Excel-Symbole-Liste","Symbol","Verwendungsmöglichkeit"]
["Em-Abstand (nur Symbolhinterlegung):"," ","Einrückungsabstand in Aufzählung ab der zweiten Zeile eines Aufzählungspunktes."]
["En-Abstand (nur Symbolhinterlegung):"," ","Bisher keine."]
["Black Small Square (nur Symbolhinterlegung):","▪","Aufzählungspunkt-Kennzeichen ab der zweiten Ebene (auf der ersten Ebene ist es: \"-\")."]
[]
[]
[]
[]
[]
[]
[]
[]
[]
[]
[]
[]
[]
[]
[]
[]
[]
[]
[]
[]
[]
[]
[]
[]
[]
[]
[]
[]
[]
[]
[]
[]
[]
[]
[]
[]
[]
[]
[]
[]
[]
[]
[]
[]
[]
[]
[]
[]
[]
[]
[]
[]
[]
[]
[]
[]
[]
[]
[]
[]
[]
[]
[]
[]
[]
[]
[]
[]
[]
[]
[]
[]
[]
[]
[]
[]
[]
[]
[]
[]
[]
[]
[]
[]
[]
[]
[]
[]
[]
[]
[]
[]
[]
[]
[]
[]
["Zwischengespeicherte Excel-Einstellungen | Art","Wert 1","Wert 2"]
["Application.Calculation",-4105]
["Application.Cursor",-4143]
["Application.CutCopyMode",0]
["Application.DisplayAlerts","True"]
["Application.DisplayFormulaBar","True"]
["Application.DisplayFullScreen","False"]
["Application.DisplayScrollBars","True"]
["Application.DisplayStatusBar","True"]
["Application.EnableCancelKey",1]
["Application.EnableEvents","True"]
["Application.IgnoreRemoteRequests","False"]
["Application.PrintCommunication","True"]
["Application.ScreenUpdating","True"]
["Application.ShowWindowsInTaskbar","True"]
["Application.StatusBar","False"]
["Application.WindowState",-4137]
[]
[]
[]
[]
[]
[]
[]
[]
[]
[]
[]
[]
[]
[]
[]
[]
[]
[]
[]
[]
[]
[]
[]
[]
[]
[]
[]
[]
[]
[]
[]
[]
[]
[]
[]
[]
[]
[]
[]
[]
[]
[]
[]
[]
[]
[]
[]
[]
[]
[]
[]
[]
[]
[]
[]
[]
[]
[]
[]
[]
[]
[]
[]
[]
[]
[]
[]
[]
[]
[]
[]
[]
[]
[]
[]
[]
[]
[]
[]
[]
[]
[]
[]
[]
[]
[]
[]
[]
[]
[]
[]
[]
[]
[]
[]
[]
[]
[]
[]
[]
[]
[]
[]
[]
[]
[]
[]
[]
[]
[]
[]
[]
[]
[]
[]
[]
[]
[]
[]
[]
[]
[]
[]
[]
[]
[]
[]
[]
[]
[]
[]
[]
[]
[]
[]
[]
[]
[]
[]
[]
[]
[]
[]
[]
[]
[]
[]
[]
[]
[]
[]
[]
[]
[]
[]
[]
[]
[]
[]
[]
[]
[]
[]
[]
[]
[]
[]
[]
[]
[]
[]
[]
[]
[]
[]
[]
[]
[]
[]
[]
[]
[]
[]
["… (z. B. RibbonX-Element-Labels je Sprache | id)","… (English)","… (German)"]
["customGroupInfoAndSupport","Info and Support","Info und Support"]
[]
[]
[]
[]
["Index (für Reihenfolge in Ribbon-DropDown)","Anzeigename der hinterlegten Datenbank","Tabellenblatt-Name","Wurde DB in der aktuellen Sitzung bereits einmal analysiert?"]
["…","…","…","False",null," -> Anmerkung: In dieser Zeile stehen immer Dummy-Werte, da anderfalls die Prüfung von .ListRows.Count null als Ergebnis ausgibt (wenn die erste Zeile keine Werte enthält; Verhalten bisher nur beim VSTO Add-In beobachtet)."]
[2,"Diag_1_Körperatlas_AU","arszWksDBTemplate (4)","False"]
[3,"Heilm_1_Arzneistoffe_Phönix","arszWksDBTemplate (5)","False"]
[4,"Heilpflanzen(A-Z)","arszWksDBTemplate (3)","False"]
[5,"Testdatenbank","arszWksDBTemplate (2)","False"]
[]
["PICTURES"]
["Picture 1:"]
[]
[]
[]
["ChartObject_1:"]

{"sheet":"Settings","index":3,"n_rows":0,"n_cols":0,"rows_kept":0,"cut":false,"hidden":true,"merged":[]}

{"sheet":"Startseite","index":4,"n_rows":0,"n_cols":0,"rows_kept":0,"cut":false,"hidden":true,"merged":[]}

{"sheet":"Hilfe","index":5,"n_rows":139,"n_cols":4,"rows_kept":139,"cut":false,"hidden":true,"merged":[[25,0,25,11],[24,3,24,12],[114,2,114,12],[116,2,116,12],[16,3,16,12],[23,0,23,12],[6,3,8,12],[10,3,10,12],[12,3,14,12],[15,0,15,12],[20,3,22,12],[118,2,118,12],[120,3,120,5],[122,3,122,4],[121,3,121,4],[124,3,124,4],[138,2,138,12],[136,2,136,12],[125,3,125,4],[126,3,126,4],[128,2,128,12],[130,2,130,12],[132,3,132,4]]}
[]
[null,"Hilfe zur Software \"DNS Aktivierung\""]
[]
[]
[null,"Personelle Voraussetzungen"]
[]
[null,null,"m","Das Programm greift in Bewusstseinsprozesse ein und deshalb sollten alle Anwendungen bewusst und ernsthaft durchgeführt werden."]
[]
[]
[]
[null,null,"m","Am besten Sie sind zu zweit, der eine spielt den Coach und der andere den Klienten. "]
[]
[null,null,"m","Nie eine Analyse ohne die Zustimmung des Klienten durchführen. Ein absolutes „no go“. Die zu untersuchende Person muss nicht anwesend sein. Sie muss aber zu irgendeinem Zeitpunkt über den Inhalt  informiert worden sein."]
[null,null,null,"Nie eine Analyse ohne die Zustimmung des Klienten durchführen. Ein absolutes „no go“. Die zu untersuchende Person muss nicht anwesend sein. Sie muss aber zu irgendeinem Zeitpunkt über den Inhalt  informiert worden sein. Siehe nächster Absatz."]
[null,null,null,"Lesen Sie ihm die Definitionen der 7 Hauptchakren vor"]
[]
[null,null,"m","Der Coach informiert den Klienten an Hand der beiden Arbeitsblätter „2. Text DNS“ und \n„3. Text Chakren“. Ebenso bespricht er mit dem Klienten den Ablauf.\n"]
[]
[null,"Durchführung der Analyse"]
[]
[null,null,"m","Beginnen Sie mit dem Test, indem Sie das Menü „analysieren“  anwählen.  Dann arbeiten Sie die einzelnen Menüs nach rechts ab. Zum Abschluss erstellen Sie eine PDF Datei (mit der Schaltfläche „PDF erstellen“). Die PDF Datei können Sie auch ausdrucken oder speichern. Dazu benötigen Sie einen PDF Reader (gibt es kostenlos im Internet z.B. von Adobe). "]
[]
[]
[]
[null,null,"m","Coach und Klient sollen die Ergebnisse gemeinsam besprechen."]
[]
[]
[]
[]
[]
[]
[]
[]
[]
[]
[]
[]
[]
[]
[]
[]
[]
[]
[]
[]
[]
[]
[]
[]
[]
[]
[]
[]
[]
[]
[]
[]
[]
[]
[]
[]
[]
[]
[]
[]
[]
[]
[]
[]
[]
[]
[]
[]
[]
[]
[]
[]
[]
[]
[]
[]
[]
[]
[]
[]
[]
[]
[]
[]
[]
[]
[]
[]
[]
[]
[]
[]
[]
[]
[]
[]
[]
[]
[]
[]
[]
[]
[]
[]
[]
[]
[]
[null,"Bewertung der Ergebnisse"]
[]
[null,null,"Die Analyse ist so ausgelegt, dass die Aktvierung der DNS von 0 bis 100 gehen kann. Null bedeutet keine Aktivierung und 100 die maximal mögliche Aktivierung."]
[]
[null,null,"Beginnen Sie zunächst mit den Durchschnittswerten, für die DNS ist dies die letzte Zeile und für die Chakren die Spalte ganz rechts. Nehmen Sie sich zunächst die ganz schwachen Werte vor (Zum Beispiel <10)."]
[]
[null,null,"Die Werte geben den Grad der Aktivierung an"]
[]
[null,null,"q","> 50%  mittelmäßig"]
[null,null,"q","> 60%  stark"]
[null,null,"q","> 80%  sehr stark"]
[]
[null,null,"q","< 50%  mittelmäßig"]
[null,null,"q","< 40%  schwach"]
[null,null,"q","< 20%  sehr schwach"]
[]
[null,null,"Gehen Sie dann zur Detailanalyse über, indem Sie sich die Werte in den einzelnen Matrixfeldern  anschauen. Konzentrieren Sie sich auf die Felder mit den Werten kleiner als zehn (< 10)."]
[]
[null,null,"Lassen Sie auch nicht die Talente unbeachtet!"]
[]
[null,null,"q","> 90%  sehr stark"]
[]
[]
[]
[null,null,"Besuchen Sie unsere Webseite"]
[]
[null,null,"www.arandas.de"]

{"sheet":"Text DNS","index":6,"n_rows":30,"n_cols":3,"rows_kept":30,"cut":false,"hidden":true,"merged":[]}
[]
[null,"Die zwölf DNS-Stränge"]
[]
[null,"1. Lebenskraft"]
[null,null,"Dies ist der einzige DNS Strang der physisch ausgebildet ist und den die Wissenschaft kennt. Durch ihn erhalten wir die Fähigkeiten mit einem Körper das irdische Leben zu meistern. "]
[null,"2. Lebensziel"]
[null,null,"Dieser DNS-Strang beschreibt unseren Lebensplan und die Lernziele, die erreicht werden sollen. Diese Informationen sind sehr ähnlich mit dem Inhalt eines Geburtshoroskopes"]
[null,"3. Schöpferkraft"]
[null,null,"Mit dieser Fähigkeit wird unser Schöpfungspotenzial definiert. Dies bezieht sich nicht nur auf das Zeugen von Nachkommen sondern ganz allgemein auf das Erschaffen von Werken, die unsere Existenz überdauern."]
[]
[null,"4. Wohlbefinden"]
[null,null,"Hier beginnt die emotionale Ebene. Es geht um die Harmonisierung der Gefühle um dadurch im Einklang mit der Umwelt zu leben. Unsere unkontrollierten Emotionen verursachen oft chronischen Krankheiten. "]
[null,"5. Lebensfreude"]
[null,null,"Die Lebensfreude entsteht nicht durch so genannte äußere  „glückliche“ Umständen, sondern die Freude entsteht aus innerer Harmonie und Ausgeglichenheit."]
[null,"6. Wahrhaftigkeit"]
[null,null,"Dies bezeichnet das Streben einen Sachverhalt durch Gedanken, Worte und Taten richtig darzustellen. Auch das Bemühen sich nicht selbst zu täuschen und sich nicht etwas einzureden fällt unter diese Charakteranlage."]
[]
[null,"7. Ordnung"]
[null,null,"Dies ist die erste der drei geistigen Ebenen. Ordnung beruht auf Übersicht, Einsicht, und Umsicht, also Sichtweisen, die die Vorstufe zur Weisheit bilden."]
[null,"8. Weisheit"]
[null,null,"Weisheit liegt vor, wenn ein umfangreicher Fundus an Wissen und Erfahrung erworben wurde und in der Praxis auch angewendet wird. In der Esoterik spricht man von „alten“ Seelen."]
[null,"9. Harmonie"]
[null,null,"Harmonie ist die höchste Ausdrucksform von Ordnung und Weisheit. Harmonie ist auch ein Ausdruck von Schönheit. Durch Harmonie öffnet sich die Tür zur Spiritualität."]
[]
[null,"10. Bewusstsein"]
[null,null,"Ein erwachtes Bewusstsein führt zu spirituellen Fähigkeiten. In manchen spirituellen Traditionen wird diese Ebene als die Kausalebene bezeichnet. Weil ein hohes Bewusstsein das Potential zum Schöpfer beinhaltet."]
[null,"11. Mitgefühl"]
[null,null,"Ist diese Ebene erreicht, so kann man nicht mehr einfach wegsehen, sondern man ist zur Teilnahme verpflichtet im Sinne von mit-empfinden und nicht durch mit-leiden. Mitleiden sollte vermieden werden, denn es vermehrt das Leid."]
[null,"12. Bedingungslose Liebe"]
[null,null,"Ist eine göttliche Eigenschaft, die auf der Erde nur sehr schwer zu erreichen ist. Das war auch nicht im ursprünglichen Plan vorgesehen. Die Einübung des Mitgefühls wäre völlig ausreichend, um das Entwicklungsziel auf unserem Planeten Erde zu erreichen. "]

{"sheet":"Text Chakren","index":7,"n_rows":12,"n_cols":9,"rows_kept":12,"cut":false,"hidden":true,"merged":[]}
[]
[null,"Die Sieben Hauptchakren"]
[]
[]
[null,null,null,null,null,null,"Funktion",null,"Drüse"]
[null,null,null,null,"7. Scheitel-Chakra",null,"Spiritualität",null,"Epiphyse"]
[null,null,null,null,"6. Stirn-Chakra",null,"Intuition",null,"Hypophyse"]
[null,null,null,null,"5. Hals-Chakra",null,"Kommunikation",null,"Schilddrüse"]
[null,null,null,null,"4. Herz-Chakra",null,"Liebe",null,"Thymusdrüse"]
[null,null,null,null,"3. Nabel-Chakra",null,"Gefühle",null,"Bauchspeicheldrüse"]
[null,null,null,null,"2. Sakral-Chakra",null,"Sexualität",null,"Keimdrüse"]
[null,null,null,null,"1. Wurzel-Chakra",null,"Lebenskraft",null,"Nebenniere"]

{"sheet":"Analyse","index":8,"n_rows":18,"n_cols":19,"rows_kept":18,"cut":false,"hidden":false,"merged":[]}
[]
[null,null,"DNS Selektionen"]
[]
[null,null,"Physische Ebene",null,null,null,"Emotionale Ebene",null,null,null,"Geistige Ebene",null,null,null,"Spirituelle Ebene"]
[null," Herr Max Mustermann\n Geburtsort: Musterstadt\n Geburtstag: 20.06.1978\n\n Beratung: Dr. Peter Ruppel\n am 14.05.2018 um 13:53 Uhr"," 1. Lebenskraft"," 2. Lebensziel"," 3. Schöpfungskraft",null," 4. Wohlbefinden"," 5. Lebensfreude"," 6. Wahrhaftigkeit",null," 7. Ordnung"," 8. Weisheit"," 9. Harmonie",null," 10. Sein"," 11. Bewusstsein"," 12. Glückseligkeit",null," Durchschnitt je Chakra"]
[null," 7. Scheitel-Chakra",29,14,78,null,82,56,22,null,21,33,20,null,47,40,11,null,{"$f":"IFERROR(ROUND(AVERAGE(C6:E6,G6:I6,K6:M6,O6:Q6),0),\"\")","v":38}]
[null," 6. Stirn-Chakra",18,42,30,null,3,63,98,null,79,1,73,null,1,55,93,null,{"$f":"IFERROR(ROUND(AVERAGE(C7:E7,G7:I7,K7:M7,O7:Q7),0),\"\")","v":46}]
[null," 5. Hals-Chakra",82,63,53,null,44,40,65,null,53,89,38,null,83,7,70,null,57]
[null," 4. Herz-Chakra",43,24,35,null,38,85,14,null,55,61,66,null,20,72,93,null,51]
[null," 3. Nabel-Chakra",83,19,40,null,55,76,93,null,1,97,35,null,81,39,50,null,56]
[null," 2. Sakral-Chakra",87,30,96,null,59,1,65,null,9,16,7,null,23,35,82,null,43]
[null," 1. Wurzel-Chakra",73,96,5,null,49,96,49,null,14,63,39,null,28,73,39,null,52]
[]
[null," Durchschnitt je DNS",{"$f":"IFERROR(ROUND(AVERAGE(C6:C12),0),\"\")","v":59},{"$f":"IFERROR(ROUND(AVERAGE(D6:D12),0),\"\")","v":41},{"$f":"IFERROR(ROUND(AVERAGE(E6:E12),0),\"\")","v":48},null,{"$f":"IFERROR(ROUND(AVERAGE(G6:G12),0),\"\")","v":47},{"$f":"IFERROR(ROUND(AVERAGE(H6:H12),0),\"\")","v":60},{"$f":"IFERROR(ROUND(AVERAGE(I6:I12),0),\"\")","v":58},null,{"$f":"IFERROR(ROUND(AVERAGE(K6:K12),0),\"\")","v":33},{"$f":"IFERROR(ROUND(AVERAGE(L6:L12),0),\"\")","v":51},{"$f":"IFERROR(ROUND(AVERAGE(M6:M12),0),\"\")","v":40},null,{"$f":"IFERROR(ROUND(AVERAGE(O6:O12),0),\"\")","v":40},{"$f":"IFERROR(ROUND(AVERAGE(P6:P12),0),\"\")","v":46},{"$f":"IFERROR(ROUND(AVERAGE(Q6:Q12),0),\"\")","v":63},null,{"$f":"IFERROR(ROUND(AVERAGE(S6:S12),0),\"\")","v":49}]
[]
[null,null,"Die Zahlen geben den Grad der Aktivierung in Prozenten an."]
[null,null,"0 = keine Aktivierung und 100 = maximale Aktivierung"]
[null,null,"Der Test ist eine radionische Momentaufnahme, die nicht reproduzierbar ist."]

{"sheet":"Graphik DNS","index":9,"n_rows":2,"n_cols":3,"rows_kept":2,"cut":false,"hidden":false,"merged":[]}
[]
[null," Herr Max Mustermann\n Geburtsort: Musterstadt\n Geburtstag: 20.06.1978\n\n Beratung: Dr. Peter Ruppel\n am 14.05.2018 um 13:53 Uhr","DNS"]

{"sheet":"Graphik Chakren","index":10,"n_rows":2,"n_cols":3,"rows_kept":2,"cut":false,"hidden":false,"merged":[]}
[]
[null," Herr Max Mustermann\n Geburtsort: Musterstadt\n Geburtstag: 20.06.1978\n\n Beratung: Dr. Peter Ruppel\n am 14.05.2018 um 13:53 Uhr","Chakra"]

{"sheet":"data","index":11,"n_rows":103,"n_cols":16,"rows_kept":103,"cut":false,"hidden":true,"merged":[]}
[null,null,null,null,null,null,null,null,null,null,null,null,null,null,null,90]
[null,"bolCalculated",false,null,null,null,null,null,null,null,null,null,null,null,null,84]
[null,null,null,null,null,null,null,null,null,null,null,"Filter",null,null,null,83]
[null,"Titel","Herr",null,null,{"$f":"Analyse!$C$5","v":" 1. Lebenskraft"},{"$f":"Analyse!$C$14","v":59},null,{"$f":"MID(Analyse!$B$12,5,100)","v":"Wurzel-Chakra"},{"$f":"Analyse!$S$12","v":52},null,3,null,10,null,82]
[null,"Vorname","Max",null,null,{"$f":"Analyse!$D$5","v":" 2. Lebensziel"},{"$f":"Analyse!$D$14","v":41},null,{"$f":"MID(Analyse!$B$11,5,100)","v":"Sakral-Chakra"},{"$f":"Analyse!$S$11","v":43},null,3,">",20,null,77]
[null,"Name","Mustermann",null,null,{"$f":"Analyse!$E$5","v":" 3. Schöpfungskraft"},{"$f":"Analyse!$E$14","v":48},null,{"$f":"MID(Analyse!$B$10,5,100)","v":"Nabel-Chakra"},{"$f":"Analyse!$S$10","v":56},null,null,"<",30,null,72]
[null,"Geburtsort","Musterstadt",null,null,{"$f":"Analyse!$G$5","v":" 4. Wohlbefinden"},{"$f":"Analyse!$G$14","v":47},null,{"$f":"MID(Analyse!$B$9,5,100)","v":"Herz-Chakra"},{"$f":"Analyse!$S$9","v":51},null,null,null,40,null,68]
[null,"Geburtstag","20.06.1978",null,null,{"$f":"Analyse!$H$5","v":" 5. Lebensfreude"},{"$f":"Analyse!$H$14","v":60},null,{"$f":"MID(Analyse!$B$8,5,100)","v":"Hals-Chakra"},{"$f":"Analyse!$S$8","v":57},null,null,null,null,null,65]
[null,"Datum","14.05.2018",null,null,{"$f":"Analyse!$I$5","v":" 6. Wahrhaftigkeit"},{"$f":"Analyse!$I$14","v":58},null,{"$f":"MID(Analyse!$B$7,5,100)","v":"Stirn-Chakra"},{"$f":"Analyse!$S$7","v":46},null,null,null,6,null,64]
[null,"Uhrzeit","13:53",null,null,{"$f":"Analyse!$K$5","v":" 7. Ordnung"},{"$f":"Analyse!$K$14","v":33},null,{"$f":"MID(Analyse!$B$6,5,100)","v":"Scheitel-Chakra"},{"$f":"Analyse!$S$6","v":38},null,null,null,7,null,61]
[null,null,null,null,null,{"$f":"Analyse!$L$5","v":" 8. Weisheit"},{"$f":"Analyse!$L$14","v":51},null,null,null,null,null,null,8,null,58]
[null,null,null,null,null,{"$f":"Analyse!$M$5","v":" 9. Harmonie"},{"$f":"Analyse!$M$14","v":40},null,null,null,null,null,null,9,null,56]
[null,null,null,null,null,{"$f":"Analyse!$O$5","v":" 10. Sein"},{"$f":"Analyse!$O$14","v":40},null,null,null,null,null,null,10,null,53]
[null,null,null,null,null,{"$f":"Analyse!$P$5","v":" 11. Bewusstsein"},{"$f":"Analyse!$P$14","v":46},null,null,null,null,null,null,11,null,51]
[null,null,null,null,null,{"$f":"Analyse!$Q$5","v":" 12. Glückseligkeit"},{"$f":"Analyse!$Q$14","v":63},null,null,null,null,null,null,12,null,50]
[null,null,null,null,null,null,null,null,null,null,null,null,null,13,null,48]
[null,null,null,null,null,null,null,null,null,null,null,null,null,14,null,45]
[null,null,null,null,null,null,null,null,null,null,null,null,null,15,null,44]
[null,null,null,null,null,null,null,null,null,null,null,null,null,16,null,42]
[null,null,null,null,null,null,null,null,null,null,null,null,null,17,null,42]
[null,null,null,null,null,null,null,null,null,null,null,null,null,18,null,33]
[null,null,null,null,null,null,null,null,null,null,null,null,null,19,null,21]
[null,null,null,null,null,null,null,null,null,null,null,null,null,20,null,20]
[null,null,null,null,null,null,null,null,null,null,null,null,null,21,null,14]
[null,null,null,null,null,null,null,null,null,null,null,null,null,22,null,11]
[null,null,null,null,null,null,null,null,null,null,null,null,null,23,null,10]
[null,null,null,null,null,null,null,null,null,null,null,null,null,24,null,2]
[null,null,null,null,null,null,null,null,null,null,null,null,null,25]
[null,null,null,null,null,null,null,null,null,null,null,null,null,26]
[null,null,null,null,null,null,null,null,null,null,null,null,null,27]
[null,null,null,null,null,null,null,null,null,null,null,null,null,28]
[null,null,null,null,null,null,null,null,null,null,null,null,null,29]
[null,null,null,null,null,null,null,null,null,null,null,null,null,30]
[null,null,null,null,null,null,null,null,null,null,null,null,null,31]
[null,null,null,null,null,null,null,null,null,null,null,null,null,32]
[null,null,null,null,null,null,null,null,null,null,null,null,null,33]
[null,null,null,null,null,null,null,null,null,null,null,null,null,34]
[null,null,null,null,null,null,null,null,null,null,null,null,null,35]
[null,null,null,null,null,null,null,null,null,null,null,null,null,36]
[null,null,null,null,null,null,null,null,null,null,null,null,null,37]
[null,null,null,null,null,null,null,null,null,null,null,null,null,38]
[null,null,null,null,null,null,null,null,null,null,null,null,null,39]
[null,null,null,null,null,null,null,null,null,null,null,null,null,40]
[null,null,null,null,null,null,null,null,null,null,null,null,null,41]
[null,null,null,null,null,null,null,null,null,null,null,null,null,42]
[null,null,null,null,null,null,null,null,null,null,null,null,null,43]
[null,null,null,null,null,null,null,null,null,null,null,null,null,44]
[null,null,null,null,null,null,null,null,null,null,null,null,null,45]
[null,null,null,null,null,null,null,null,null,null,null,null,null,46]
[null,null,null,null,null,null,null,null,null,null,null,null,null,47]
[null,null,null,null,null,null,null,null,null,null,null,null,null,48]
[null,null,null,null,null,null,null,null,null,null,null,null,null,49]
[null,null,null,null,null,null,null,null,null,null,null,null,null,50]
[null,null,null,null,null,null,null,null,null,null,null,null,null,51]
[null,null,null,null,null,null,null,null,null,null,null,null,null,52]
[null,null,null,null,null,null,null,null,null,null,null,null,null,53]
[null,null,null,null,null,null,null,null,null,null,null,null,null,54]
[null,null,null,null,null,null,null,null,null,null,null,null,null,55]
[null,null,null,null,null,null,null,null,null,null,null,null,null,56]
[null,null,null,null,null,null,null,null,null,null,null,null,null,57]
[null,null,null,null,null,null,null,null,null,null,null,null,null,58]
[null,null,null,null,null,null,null,null,null,null,null,null,null,59]
[null,null,null,null,null,null,null,null,null,null,null,null,null,60]
[null,null,null,null,null,null,null,null,null,null,null,null,null,61]
[null,null,null,null,null,null,null,null,null,null,null,null,null,62]
[null,null,null,null,null,null,null,null,null,null,null,null,null,63]
[null,null,null,null,null,null,null,null,null,null,null,null,null,64]
[null,null,null,null,null,null,null,null,null,null,null,null,null,65]
[null,null,null,null,null,null,null,null,null,null,null,null,null,66]
[null,null,null,null,null,null,null,null,null,null,null,null,null,67]
[null,null,null,null,null,null,null,null,null,null,null,null,null,68]
[null,null,null,null,null,null,null,null,null,null,null,null,null,69]
[null,null,null,null,null,null,null,null,null,null,null,null,null,70]
[null,null,null,null,null,null,null,null,null,null,null,null,null,71]
[null,null,null,null,null,null,null,null,null,null,null,null,null,72]
[null,null,null,null,null,null,null,null,null,null,null,null,null,73]
[null,null,null,null,null,null,null,null,null,null,null,null,null,74]
[null,null,null,null,null,null,null,null,null,null,null,null,null,75]
[null,null,null,null,null,null,null,null,null,null,null,null,null,76]
[null,null,null,null,null,null,null,null,null,null,null,null,null,77]
[null,null,null,null,null,null,null,null,null,null,null,null,null,78]
[null,null,null,null,null,null,null,null,null,null,null,null,null,79]
[null,null,null,null,null,null,null,null,null,null,null,null,null,80]
[null,null,null,null,null,null,null,null,null,null,null,null,null,81]
[null,null,null,null,null,null,null,null,null,null,null,null,null,82]
[null,null,null,null,null,null,null,null,null,null,null,null,null,83]
[null,null,null,null,null,null,null,null,null,null,null,null,null,84]
[null,null,null,null,null,null,null,null,null,null,null,null,null,85]
[null,null,null,null,null,null,null,null,null,null,null,null,null,86]
[null,null,null,null,null,null,null,null,null,null,null,null,null,87]
[null,null,null,null,null,null,null,null,null,null,null,null,null,88]
[null,null,null,null,null,null,null,null,null,null,null,null,null,89]
[null,null,null,null,null,null,null,null,null,null,null,null,null,90]
[null,null,null,null,null,null,null,null,null,null,null,null,null,91]
[null,null,null,null,null,null,null,null,null,null,null,null,null,92]
[null,null,null,null,null,null,null,null,null,null,null,null,null,93]
[null,null,null,null,null,null,null,null,null,null,null,null,null,94]
[null,null,null,null,null,null,null,null,null,null,null,null,null,95]
[null,null,null,null,null,null,null,null,null,null,null,null,null,96]
[null,null,null,null,null,null,null,null,null,null,null,null,null,97]
[null,null,null,null,null,null,null,null,null,null,null,null,null,98]
[null,null,null,null,null,null,null,null,null,null,null,null,null,99]
[null,null,null,null,null,null,null,null,null,null,null,null,null,100]

{"sheet":"Heilmittel-Liste","index":12,"n_rows":4,"n_cols":6,"rows_kept":4,"cut":false,"hidden":true,"merged":[[1,0,1,1]]}
[]
[" Herr Max Mustermann\n Geburtsort: Musterstadt\n Geburtstag: 20.06.1978\n\n Beratung: Dr. Peter Ruppel\n am 14.05.2018 um 13:53 Uhr",null,"Heilmittel - Liste"]
[]
[" Nr.","DNS / Chakra / Aktivierung",null,"Gruppe","Heilmittel","Potential"]

{"sheet":"Heilmittel GLOBAL","index":13,"n_rows":1696,"n_cols":2,"rows_kept":1696,"cut":false,"hidden":true,"merged":[]}
["Gruppe","Heilmittel"]
["Affirmationen","Es steht mir zu."]
["Affirmationen","Für alles, was ich brauche, ist immer gesorgt."]
["Affirmationen","Geld bewirkt viel Gutes"]
["Affirmationen","Geld gibt mir viele Möglichkeiten"]
["Affirmationen","Geld ist Energie"]
["Affirmationen","Geld ist etwas Angenehmes"]
["Affirmationen","Geld ist etwas Schönes und Gutes"]
["Affirmationen","Geld ist Freiheit"]
["Affirmationen","Geld ist mein Freund"]
["Affirmationen","Geld ist reine Energie"]
["Affirmationen","Geld ist verbriefte Freiheit"]
["Affirmationen","Geld macht sexy"]
["Affirmationen","Geld zu verdienen ist einfach"]
["Affirmationen","Ich bewundere die Reichen"]
["Affirmationen","Ich bin das Zentrum der Macht"]
["Affirmationen","Ich bin der Schöpfer meines Wohlstandes"]
["Affirmationen","Ich bin die Macht."]
["Affirmationen","Ich bin erfolgreich"]
["Affirmationen","Ich bin erfolgreich"]
["Affirmationen","Ich bin erfolgreich in allem was ich unternehme"]
["Affirmationen","Ich bin erfolgreich, was immer ich auch tue"]
["Affirmationen","Ich bin es mir wert Geld zu verlangen"]
["Affirmationen","Ich bin es mir wert mir alles zu leisten"]
["Affirmationen","Ich bin es mir wert reich zu sein"]
["Affirmationen","Ich bin es wert das man mich gebührend bezahlt"]
["Affirmationen","Ich bin gut darin, Wohlstand zu erzeugen"]
["Affirmationen","Ich bin in meinem Beruf ein Ass"]
["Affirmationen","Ich bin mein Gehalt wert"]
["Affirmationen","Ich bin mein Geld wert"]
["Affirmationen","Ich bin reich"]
["Affirmationen","Ich bin reich und wohlhabend"]
["Affirmationen","Ich bin stark und fähig"]
["Affirmationen","Ich bin unendlich reich"]
["Affirmationen","Ich bin wertvoll"]
["Affirmationen","Ich bin wertvoll und einzigartig"]
["Affirmationen","Ich darf Geld verlangen"]
["Affirmationen","Ich entscheide mich für Fülle"]
["Affirmationen","Ich entscheide mich für Fülle in meinem Leben"]
["Affirmationen","Ich entscheide mich für Reichtum"]
["Affirmationen","Ich erklimme die Karriereleiter mit Leichtigkeit"]
["Affirmationen","Ich fühle mich wohl mit viel Geld"]
["Affirmationen","Ich gehe sorgfältig mit Geld um"]
["Affirmationen","Ich genieße es mir alles leisten zu können"]
["Affirmationen","Ich genieße es reich zu sein"]
["Affirmationen","Ich genieße es, Geld zu verdienen"]
["Affirmationen","Ich habe ein Recht auf Fülle und Wohlstand"]
["Affirmationen","Ich habe ein Recht auf Reichtum"]
["Affirmationen","Ich habe Erfolg"]
["Affirmationen","Ich habe es verdient befördert zu werden"]
["Affirmationen","Ich habe es verdient den Job zu bekommen den ich haben möchte"]
["Affirmationen","Ich habe es verdient Geld zu empfangen"]
["Affirmationen","Ich habe es verdient in Fülle zu leben"]
["Affirmationen","Ich habe es verdient jeden Job zu bekommen, den ich haben möchte"]
["Affirmationen","Ich habe es verdient, ein gutes Leben zu haben"]
["Affirmationen","Ich habe es verdient, reich und erfolgreich zu sein"]
["Affirmationen","Ich habe es verdient, reich zu sein"]
["Affirmationen","Ich habe es verdient, viel Geld zu haben"]
["Affirmationen","Ich habe Kraft, Stärke und Wissen, alles in meinem leben zu bewältigen."]
["Affirmationen","Ich kann alles in meinem Leben erreichen"]
["Affirmationen","Ich kann in jedem Job erfolgreich werden"]
["Affirmationen","Ich kann mit jedem Job viel Geld verdienen"]
["Affirmationen","Ich kann so viel Geld besitzen wie ich nur möchte"]
["Affirmationen","Ich kenne den Wert des Geldes"]
["Affirmationen","Ich liebe die Reichen"]
["Affirmationen","Ich liebe es Geld zu verdienen"]
["Affirmationen","Ich liebe Geld"]
["Affirmationen","Ich liebe mich und meinen Erfolg"]
["Affirmationen","Ich liebe mich, und deshalb übe ich einen Beruf aus, der mir wirklich Freude bereitet"]
["Affirmationen","Ich liebe Reichtum"]
["Affirmationen","Ich mag mich gerne mit reichen Menschen umgeben"]
["Affirmationen","Ich segne die Reichen"]
["Affirmationen","Ich verdiene viel Geld, während ich das mache, was mir gefällt"]
["Affirmationen","Ich weiß, dass ich die richtigen Leute auf meinem Lebensweg automatisch anziehe"]
["Affirmationen","Ich weiß, dass ich wertvoll bin."]
["Affirmationen","Ich weiß, ich kann von und mit anderen Menschen sehr viel lernen"]
["Affirmationen","Ich werde auf positivste Weise bemerkt und geschätzt."]
["Affirmationen","Ich werde gut bezahlt"]
["Affirmationen","Ich werde mit jedem Tag erfolgreicher"]
["Affirmationen","Ich werde mit jedem Tag reicher und reicher"]
["Affirmationen","Ich werde täglich in jeder Hinsicht besser und besser"]
["Affirmationen","Ich ziehe Erfolg an"]
["Affirmationen","Ich ziehe Geld an"]
["Affirmationen","Ich ziehe Geld an wie ein Magnet"]
["Affirmationen","Ich ziehe genau die Herausforderung in mein Leben, die ich brauche"]
["Affirmationen","Ich ziehe Reichtum an"]
["Affirmationen","Ich ziehe Wohlstand an"]
["Affirmationen","Jeder kann reich und erfolgreich werden"]
["Affirmationen","Macht ist etwas Schönes"]
["Affirmationen","Mein Leben ist erfüllt und reich"]
["Affirmationen","Meine Arbeit ist ein Genuss und erfüllt mich"]
["Affirmationen","Meine einzigartigen und kreativen Fähigkeiten und Talente durchströmen mich"]
["Affirmationen","Meine Vorstellungskraft ist grenzenlos"]
["Affirmationen","Mir wurden alle Werkzeuge um Reichtum zu erlangen in die Wiege gelegt"]
["Affirmationen","Mit Macht und Geld kann ich viel Gutes bewirken"]
["Affirmationen","Reich sein bedeutet frei sein"]
["Affirmationen","Reich sein ist einfach"]
["Affirmationen","Reich sein ist schön"]
["Affirmationen","Reiche Menschen tun mir gut"]
["Affirmationen","Reichtum ist ein natürlicher Zustand in meinem Leben"]
["Affirmationen","Reichtum ist schön"]
["Affirmationen","Reichtum macht potent"]
["Affirmationen","Reichtum steht mir gut"]
["Alaska-Blütenessenzen","Alder "]
["Alaska-Blütenessenzen","Alpine Azalea "]
["Alaska-Blütenessenzen","Balsam Poplar "]
["Alaska-Blütenessenzen","Black Spruce "]
["Alaska-Blütenessenzen","Bladderwort "]
["Alaska-Blütenessenzen","Blue Elf Viola "]
["Alaska-Blütenessenzen","Blueberry Pollen "]
["Alaska-Blütenessenzen","Bog Blueberry "]
["Alaska-Blütenessenzen","Bog Rosemary "]
["Alaska-Blütenessenzen","Bunchberry "]
["Alaska-Blütenessenzen","Cassandra "]
["Alaska-Blütenessenzen","Cattail Pollen "]
["Alaska-Blütenessenzen","Chiming Bells "]
["Alaska-Blütenessenzen","Columbine "]
["Alaska-Blütenessenzen","Comandra "]
["Alaska-Blütenessenzen","Cotton Grass "]
["Alaska-Blütenessenzen","Cow Parsnip "]
["Alaska-Blütenessenzen","Dandelion "]
["Alaska-Blütenessenzen","Fireweed "]
["Alaska-Blütenessenzen","Forget-Me-Not "]
["Alaska-Blütenessenzen","Foxglove "]
["Alaska-Blütenessenzen","Golden Corydalis "]
["Alaska-Blütenessenzen","Grass of Parnassus "]
["Alaska-Blütenessenzen","Green Bells of Ireland "]
["Alaska-Blütenessenzen","Green Bog Orchid "]
["Alaska-Blütenessenzen","Green Fairy Orchid "]
["Alaska-Blütenessenzen","Grove Sandwort "]
["Alaska-Blütenessenzen","Hairy Butterwort "]
["Alaska-Blütenessenzen","Harebell "]
["Alaska-Blütenessenzen","Horsetail "]
["Alaska-Blütenessenzen","Icelandic Poppy "]
["Alaska-Blütenessenzen","Jacob's Ladder "]
["Alaska-Blütenessenzen","Labrador Tea "]
["Alaska-Blütenessenzen","Lace Flower "]
["Alaska-Blütenessenzen","Ladies' Tresses "]
["Alaska-Blütenessenzen","Lady's Slipper "]
["Alaska-Blütenessenzen","Lamb's Quarters "]
["Alaska-Blütenessenzen","Monkshood "]
["Alaska-Blütenessenzen","Moschatel "]
["Alaska-Blütenessenzen","Mountain Wormwood "]
["Alaska-Blütenessenzen","Nortern Twayblade "]
["Alaska-Blütenessenzen","Northern Lady's Slipper "]
["Alaska-Blütenessenzen","One-Sided Wintergreen "]
["Alaska-Blütenessenzen","Opium Poppy "]
["Alaska-Blütenessenzen","Paper Birch "]
["Alaska-Blütenessenzen","Pineapple Weed "]
["Alaska-Blütenessenzen","Prickly Wild Rose "]
["Alaska-Blütenessenzen","River Beauty "]
["Alaska-Blütenessenzen","Round-leaved Sundew "]
["Alaska-Blütenessenzen","Shooting Star "]
["Alaska-Blütenessenzen","Single Delight "]
["Alaska-Blütenessenzen","Sitka Burnet "]
["Alaska-Blütenessenzen","Sitka Spruce Pollen "]
["Alaska-Blütenessenzen","Soapberry "]
["Alaska-Blütenessenzen","Sphagnum Moss "]
["Alaska-Blütenessenzen","Spiraea "]
["Alaska-Blütenessenzen","Sticky Geranium "]
["Alaska-Blütenessenzen","Sunflower "]
["Alaska-Blütenessenzen","Sweetgale "]
["Alaska-Blütenessenzen","Sweetgrass "]
["Alaska-Blütenessenzen","Tamarack "]
["Alaska-Blütenessenzen","Tundra Rose "]
["Alaska-Blütenessenzen","Tundra Twayblade "]
["Alaska-Blütenessenzen","Twinflower "]
["Alaska-Blütenessenzen","White Fireweed "]
["Alaska-Blütenessenzen","White Spruce "]
["Alaska-Blütenessenzen","White Violet "]
["Alaska-Blütenessenzen","Wild Iris "]
["Alaska-Blütenessenzen","Wild Rhubarb "]
["Alaska-Blütenessenzen","Willow "]
["Alaska-Blütenessenzen","Yarrow "]
["ätherische Öle","Amber "]
["ätherische Öle","Angelikasamen "]
["ätherische Öle","Angelikawurzel "]
["ätherische Öle","Anis "]
["ätherische Öle","Arnika "]
["ätherische Öle","Baldrian "]
["ätherische Öle","Basilikum "]
["ätherische Öle","Bay "]
["ätherische Öle","Benzoeblätter "]
["ätherische Öle","Bergamotte "]
["ätherische Öle","Birkenholz "]
["ätherische Öle","Bittermandel "]
["ätherische Öle","Blutorange "]
["ätherische Öle","Bohnenkraut "]
["ätherische Öle","Cananga "]
["ätherische Öle","Cascarilla "]
["ätherische Öle","Cassia "]
["ätherische Öle","Citronella "]
["ätherische Öle","Clementine "]
["ätherische Öle","Cumin "]
["ätherische Öle","Curacaoschalen "]
["ätherische Öle","Dillkraut "]
["ätherische Öle","Dillsamen "]
["ätherische Öle","Edeltanne "]
["ätherische Öle","Eichenmoos "]
["ätherische Öle","Elemi "]
["ätherische Öle","Erdbeere "]
["ätherische Öle","Estragon "]
["ätherische Öle","Eukalyptus "]
["ätherische Öle","Fenchel "]
["ätherische Öle","Fichtennadel "]
["ätherische Öle","Flieder "]
["ätherische Öle","Fresie "]
["ätherische Öle","Galbanum "]
["ätherische Öle","Geißblatt "]
["ätherische Öle","Geranium "]
["ätherische Öle","Gingergras "]
["ätherische Öle","Grapefruit "]
["ätherische Öle","Grapefruitkern "]
["ätherische Öle","Guajakholz "]
["ätherische Öle","Hopfen "]
["ätherische Öle","Hyazinthe "]
["ätherische Öle","Immortelle "]
["ätherische Öle","Ingwer "]
["ätherische Öle","Jasmin "]
["ätherische Öle","Kalmus "]
["ätherische Öle","Kamille "]
["ätherische Öle","Kampfer "]
["ätherische Öle","Kardamom "]
["ätherische Öle","Karottensamen "]
["ätherische Öle","Kiefernnadel "]
["ätherische Öle","Knoblauch "]
["ätherische Öle","Koriander "]
["ätherische Öle","Krauseminze "]
["ätherische Öle","Kümmel "]
["ätherische Öle","Labdanum "]
["ätherische Öle","Latschenkiefer "]
["ätherische Öle","Lavandin "]
["ätherische Öle","Lavendel "]
["ätherische Öle","Lemongras "]
["ätherische Öle","Liebstock "]
["ätherische Öle","Limette "]
["ätherische Öle","Lindenblüte "]
["ätherische Öle","Litsea Cubeba "]
["ätherische Öle","Lotus "]
["ätherische Öle","Macisblüte "]
["ätherische Öle","Magnolie "]
["ätherische Öle","Maiglöckchen "]
["ätherische Öle","Majoran "]
["ätherische Öle","Mandarine "]
["ätherische Öle","Meerkiefer "]
["ätherische Öle","Melisse "]
["ätherische Öle","Minze, chinesische "]
["ätherische Öle","Muskatellersalbei "]
["ätherische Öle","Muskatnuss"]
["ätherische Öle","Myrrhe "]
["ätherische Öle","Myrte "]
["ätherische Öle","Narde "]
["ätherische Öle","Narzisse "]
["ätherische Öle","Neem "]
["ätherische Öle","Nelke "]
["ätherische Öle","Neroli "]
["ätherische Öle","Niouli "]
["ätherische Öle","Olibanum (Weihrauch) "]
["ätherische Öle","Opoponax "]
["ätherische Öle","Orange "]
["ätherische Öle","Orchidee "]
["ätherische Öle","Palatino "]
["ätherische Öle","Palmarosa "]
["ätherische Öle","Patchouli "]
["ätherische Öle","Perubalsam "]
["ätherische Öle","Petersilie "]
["ätherische Öle","Petitgrain "]
["ätherische Öle","Pfeffer "]
["ätherische Öle","Pfefferminze "]
["ätherische Öle","Pfirsich "]
["ätherische Öle","Piment "]
["ätherische Öle","Poleyminze "]
["ätherische Öle","Pomeranzenschalen "]
["ätherische Öle","Ravensara "]
["ätherische Öle","Rose "]
["ätherische Öle","Rosenholz "]
["ätherische Öle","Rosmarin "]
["ätherische Öle","Salbei "]
["ätherische Öle","Sandelholz "]
["ätherische Öle","Schafgarbe "]
["ätherische Öle","Sellerie "]
["ätherische Öle","Shiu "]
["ätherische Öle","Siamholz "]
["ätherische Öle","Speik "]
["ätherische Öle","Sternanis "]
["ätherische Öle","Styrax "]
["ätherische Öle","Tabak "]
["ätherische Öle","Tagetes "]
["ätherische Öle","Tannenzapfen "]
["ätherische Öle","Teebaum "]
["ätherische Öle","Terpentin "]
["ätherische Öle","Thymian "]
["ätherische Öle","Tulpe "]
["ätherische Öle","Tulsi "]
["ätherische Öle","Vanille "]
["ätherische Öle","Verbena "]
["ätherische Öle","Vetiver "]
["ätherische Öle","Wacholderbeeren "]
["ätherische Öle","Wacholderholz "]
["ätherische Öle","Weinbeer "]
["ätherische Öle","Wermut "]
["ätherische Öle","Wintergrün "]
["ätherische Öle","Wurmsamen "]
["ätherische Öle","Ylang Ylang "]
["ätherische Öle","Ysop "]
["ätherische Öle","Zeder "]
["ätherische Öle","Zedernholz "]
["ätherische Öle","Zimtblätter "]
["ätherische Öle","Zimtrinde "]
["ätherische Öle","Zistrose "]
["ätherische Öle","Zitrone "]
["ätherische Öle","Zwiebel "]
["ätherische Öle","Zypresse "]
["Aura Soma","Blassblau (Farbe) "]
["Aura Soma","Blassgelb (Farbe) "]
["Aura Soma","Blassgold (Farbe) "]
["Aura Soma","Blassgrün (Farbe) "]
["Aura Soma","Blasskoralle (Farbe) "]
["Aura Soma","Blassorange (Farbe) "]
["Aura Soma","Blasspink (Farbe) "]
["Aura Soma","Blasstürkis (Farbe) "]
["Aura Soma","Blassviolett (Farbe) "]
["Aura Soma","Blau (Farbe) "]
["Aura Soma","Die dritte Balanceflasche (Filter) "]
["Aura Soma","Die erste Balanceflasche (Filter) "]
["Aura Soma","Die vierte Balanceflasche (Filter) "]
["Aura Soma","Die zweite Balanceflasche (Filter) "]
["Aura Soma","Gelb (Farbe) "]
["Aura Soma","Gold (Farbe) "]
["Aura Soma","Grün (Farbe) "]
["Aura Soma","Klar (Farbe) "]
["Aura Soma","Königsblau (Farbe) "]
["Aura Soma","Koralle (Farbe) "]
["Aura Soma","Magenta (Farbe) "]
["Aura Soma","Nr. 0 (Königsblau über Tiefmagenta) "]
["Aura Soma","Nr. 1 (Blau über Tiefmagenta) "]
["Aura Soma","Nr. 10 (Grün über Grün) "]
["Aura Soma","Nr. 11 (Klar über Pink) "]
["Aura Soma","Nr. 12 (Klar über Blau) "]
["Aura Soma","Nr. 13 (Klar über Grün) "]
["Aura Soma","Nr. 14 (Klar über Gold) "]
["Aura Soma","Nr. 15 (Klar über Violett) "]
["Aura Soma","Nr. 16 (Violett über Violett) "]
["Aura Soma","Nr. 17 (Grün über Violett) "]
["Aura Soma","Nr. 18 (Gelb über Violett) "]
["Aura Soma","Nr. 19 (Rot über Violett) "]
["Aura Soma","Nr. 2 (Blau über Blau) "]
["Aura Soma","Nr. 20 (Blau über Pink) "]
["Aura Soma","Nr. 21 (Grün über Pink) "]
["Aura Soma","Nr. 22 (Gelb über Pink) "]
["Aura Soma","Nr. 23 (Rosenpink über Pink) "]
["Aura Soma","Nr. 24 (Violett über Türkis) "]
["Aura Soma","Nr. 25 (Rotviolett über Magenta) "]
["Aura Soma","Nr. 26 (Orange über Orange) "]
["Aura Soma","Nr. 27 (Rot über Grün) "]
["Aura Soma","Nr. 28 (Grün über Rot) "]
["Aura Soma","Nr. 29 (Rot über Blau) "]
["Aura Soma","Nr. 3 (Blau über Grün) "]
["Aura Soma","Nr. 30 (Blau über Rot) "]
["Aura Soma","Nr. 31 (Grün über Gold) "]
["Aura Soma","Nr. 32 (Königsblau über Gold) "]
["Aura Soma","Nr. 33 (Königsblau über Türkis) "]
["Aura Soma","Nr. 34 (Pink über Türkis) "]
["Aura Soma","Nr. 35 (Pink über Violett) "]
["Aura Soma","Nr. 36 (Violett über Pink) "]
["Aura Soma","Nr. 37 (Violett über Blau) "]
["Aura Soma","Nr. 38 (Violett über Grün) "]
["Aura Soma","Nr. 39 (Violett über Gold) "]
["Aura Soma","Nr. 4 (Gelb über Gold) "]
["Aura Soma","Nr. 40 (Rot über Gold) "]
["Aura Soma","Nr. 41 (Gold über Gold) "]
["Aura Soma","Nr. 42 (Gelb über Gelb) "]
["Aura Soma","Nr. 43 (Türkis über Türkis) "]
["Aura Soma","Nr. 44 (Lila über Blassblau) "]
["Aura Soma","Nr. 45 (Türkis über Magenta) "]
["Aura Soma","Nr. 46 (Grün über Magenta) "]
["Aura Soma","Nr. 47 (Königsblau über Zitronengelb) "]
["Aura Soma","Nr. 48 (Violett über Klar) "]
["Aura Soma","Nr. 49 (Türkis über Violett) "]
["Aura Soma","Nr. 5 (Gelb über Rot) "]
["Aura Soma","Nr. 50 (Blassblau über Blassblau, Meister) "]
["Aura Soma","Nr. 51 (Blassgelb über Blassgelb, Meister) "]
["Aura Soma","Nr. 52 (Blasspink über Blasspink, Meister) "]
["Aura Soma","Nr. 53 (Blassgrün über Blassgrün, Meister) "]
["Aura Soma","Nr. 54 (Klar über Klar, Meister) "]
["Aura Soma","Nr. 55 (Klar über Rot, Meister) "]
["Aura Soma","Nr. 56 (Blassviolett über Blassviolett, Meister) "]
["Aura Soma","Nr. 57 (Blasspink über Blassblau, Meister) "]
["Aura Soma","Nr. 58 (Blassblau über Blasspink, Meister) "]
["Aura Soma","Nr. 59 (Blassgelb über Blasspink, Meister) "]
["Aura Soma","Nr. 6 (Rot über Rot) "]
["Aura Soma","Nr. 60 (Blau über Klar, Meister) "]
["Aura Soma","Nr. 61 (Blasspink über Blassgelb, Meister) "]
["Aura Soma","Nr. 62 (Blasstürkis über Blasstürkis, Meister) "]
["Aura Soma","Nr. 63 (Grün über Blassgrün, Meister) "]
["Aura Soma","Nr. 64 (Grün über Klar, Meister) "]
["Aura Soma","Nr. 65 (Violett über Rot) "]
["Aura Soma","Nr. 66 (Blassviolett über Blasspink) "]
["Aura Soma","Nr. 67 (Magenta über Magenta) "]
["Aura Soma","Nr. 68 (Blau über Violett) "]
["Aura Soma","Nr. 69 (Magenta über Klar) "]
["Aura Soma","Nr. 7 (Gelb über Grün) "]
["Aura Soma","Nr. 70 (Gelb über Klar) "]
["Aura Soma","Nr. 71 (Pink über Klar) "]
["Aura Soma","Nr. 72 (Blau über Orange) "]
["Aura Soma","Nr. 73 (Gold über Klar) "]
["Aura Soma","Nr. 74 (Blassgelb über Blassgrün) "]
["Aura Soma","Nr. 75 (Magenta über Türkis) "]
["Aura Soma","Nr. 76 (Pink über Gold) "]
["Aura Soma","Nr. 77 (Klar über Magenta) "]
["Aura Soma","Nr. 78 (Violett über Tiefmagenta) "]
["Aura Soma","Nr. 79 (Orange über Violett) "]
["Aura Soma","Nr. 8 (Gelb über Blau) "]
["Aura Soma","Nr. 80 (Rot über Pink) "]
["Aura Soma","Nr. 81 (Pink über Pink) "]
["Aura Soma","Nr. 82 (Grün über Orange) "]
["Aura Soma","Nr. 83 (Türkis über Gold) "]
["Aura Soma","Nr. 84 (Pink über Rot) "]
["Aura Soma","Nr. 85 (Türkis über Klar) "]
["Aura Soma","Nr. 86 (Klar über Türkis) "]
["Aura Soma","Nr. 87 (Koralle über Koralle) "]
["Aura Soma","Nr. 88 (Grün über Blau) "]
["Aura Soma","Nr. 89 (Rot über Tiefmagenta) "]
["Aura Soma","Nr. 9 (Türkis über Grün) "]
["Aura Soma","Nr. 90 (Gold über Tiefmagenta) "]
["Aura Soma","Nr. 91 (Olivgrün über Olivgrün) "]
["Aura Soma","Olivgrün (Farbe) "]
["Aura Soma","Orange (Farbe) "]
["Aura Soma","Pink (Farbe) "]
["Aura Soma","Pomander Nr. 1 (Weiß) "]
["Aura Soma","Pomander Nr. 10 (Türkis) "]
["Aura Soma","Pomander Nr. 11 (Saphirblau) "]
["Aura Soma","Pomander Nr. 12 (Königsblau) "]
["Aura Soma","Pomander Nr. 13 (Violett) "]
["Aura Soma","Pomander Nr. 14 (Tiefmagenta) "]
["Aura Soma","Pomander Nr. 2 (Pink) "]
["Aura Soma","Pomander Nr. 3 (Dunkelrot) "]
["Aura Soma","Pomander Nr. 4 (Rot) "]
["Aura Soma","Pomander Nr. 5 (Orange) "]
["Aura Soma","Pomander Nr. 6 (Gold) "]
["Aura Soma","Pomander Nr. 7 (Gelb) "]
["Aura Soma","Pomander Nr. 8 (Olivgrün) "]
["Aura Soma","Pomander Nr. 9 (Smaragdgrün) "]
["Aura Soma","Rosenpink (Farbe) "]
["Aura Soma","Rot (Farbe) "]
["Aura Soma","Rotviolett (Farbe) "]
["Aura Soma","Smaragdgrün (Farbe) "]
["Aura Soma","Tiefmagenta (Farbe) "]
["Aura Soma","Türkis (Farbe) "]
["Aura Soma","Violett (Farbe) "]
["Aura Soma","Zironengelb (Farbe) "]
["australische Buschblüten","Alpine Mint Bush "]
["australische Buschblüten","Angelsword "]
["australische Buschblüten","Banksia Robur "]
["australische Buschblüten","Bauhinia "]
["australische Buschblüten","Billy Goat Plum "]
["australische Buschblüten","Black-Eyed Susan "]
["australische Buschblüten","Blue-Bell "]
["australische Buschblüten","Boab "]
["australische Buschblüten","Boronia "]
["australische Buschblüten","Bottlebrush "]
["australische Buschblüten","Bush Fuchsia "]
["australische Buschblüten","Bush Gardenia "]
["australische Buschblüten","Bush Iris "]
["australische Buschblüten","Crowea "]
["australische Buschblüten","Dagger Hakea "]
["australische Buschblüten","Dog Rose "]
["australische Buschblüten","Five Corners "]
["australische Buschblüten","Flannel Flower "]
["australische Buschblüten","Freshwater Mangrove "]
["australische Buschblüten","Fringed Violet "]
["australische Buschblüten","Green Spider Orchid "]
["australische Buschblüten","Grey Spider Flower "]
["australische Buschblüten","Gymnea Lily "]
["australische Buschblüten","Hibbertia "]
["australische Buschblüten","Illawara Flame Tree "]
["australische Buschblüten","Isopogon "]
["australische Buschblüten","Jacaranda "]
["australische Buschblüten","Kangaroo Paw "]
["australische Buschblüten","Kapok Bush "]
["australische Buschblüten","Little Flannel Flower "]
["australische Buschblüten","Macrocarpa "]
["australische Buschblüten","Mint Bush "]
["australische Buschblüten","Mountain Devil "]
["australische Buschblüten","Mulla Mulla "]
["australische Buschblüten","Old Man Banksia "]
["australische Buschblüten","Paw Paw "]
["australische Buschblüten","Peach-flowered Tea Tree "]
["australische Buschblüten","Philotheca "]
["australische Buschblüten","Pink Mulla Mulla "]
["australische Buschblüten","Red Grevillea "]
["australische Buschblüten","Red Helmet "]
["australische Buschblüten","Red Lily "]
["australische Buschblüten","Red Suva Frangipani "]
["australische Buschblüten","Rough Bluebell "]
["australische Buschblüten","She Oak "]
["australische Buschblüten","Silver Princess "]
["australische Buschblüten","Slender Rice Flower "]
["australische Buschblüten","Southern Cross "]
["australische Buschblüten","Spinifex "]
["australische Buschblüten","Sturt Desert Pea "]
["australische Buschblüten","Sturt Desert Rose "]
["australische Buschblüten","Sundew "]
["australische Buschblüten","Sunshine Wattle "]
["australische Buschblüten","Tall Yellow Top "]
["australische Buschblüten","Turkey Bush "]
["australische Buschblüten","Waratah "]
["australische Buschblüten","Wedding Bush "]
["australische Buschblüten","Wild Potato Bush "]
["australische Buschblüten","Wisteria "]
["australische Buschblüten","Yellow Cowslip Orchid "]
["Bachblühten","Agrimony (Odermenning)"]
["Bachblühten","Aspen (Zitterpappel, Espe)"]
["Bachblühten","Beech (Rotbuche)"]
["Bachblühten","Centaury (Tausendgüldenkraut)"]
["Bachblühten","Cerato (Chinesische Bleiwurz) "]
["Bachblühten","Cherry Plum (Kirschpflaume)"]
["Bachblühten","Chestnut Bud (Rosskastanie)"]
["Bachblühten","Chicory (Wegwarte)"]
["Bachblühten","Clematis (Waldrebe)"]
["Bachblühten","Crab Apple (Holzapfel)"]
["Bachblühten","Elm (Ulme)"]
["Bachblühten","Gentian (Fransenenzian)"]
["Bachblühten","Gorse (Stechginster)"]
["Bachblühten","Heather (Heidekraut)"]
["Bachblühten","Holly (Stechpalme)"]
["Bachblühten","Honeysuckle (Geißblatt)"]
["Bachblühten","Hornbeam (Weißbuche)"]
["Bachblühten","Impatiens (Springkraut)"]
["Bachblühten","Larch (Lärche)"]
["Bachblühten","Mimulus (Gauklerblume)"]
["Bachblühten","Mustard (Ackersenf)"]
["Bachblühten","Oak (Stieleiche)"]
["Bachblühten","Olive (Olivenbaum)"]
["Bachblühten","Pine (Kiefer, Föhre)"]
["Bachblühten","Red Chestnut (Rote Rosskastanie)"]
["Bachblühten","Rock Rose (Sonnenröschen)"]
["Bachblühten","Rock Water (Quellwasser)"]
["Bachblühten","Scleranthus (Knäuelkraut)"]
["Bachblühten","Star of Bethlehem (Milchstern)"]
["Bachblühten","Sweet Chestnut (Edelkastanie)"]
["Bachblühten","Vervain (Eisenkraut)"]
["Bachblühten","Vine (Weinrebe)"]
["Bachblühten","Walnut (Walnuss)"]
["Bachblühten","Water Violet (Wasserprimel)"]
["Bachblühten","White Chestnut (Gewöhnliche Rosskastanie)"]
["Bachblühten","Wild Oat (Waldrespe)"]
["Bachblühten","Wild Rose (Hundrose)"]
["Bachblühten","Willow (Dotterweide)"]
["Edelsteine","Amazonit "]
["Edelsteine","Amethyst "]
["Edelsteine","Aquamarin "]
["Edelsteine","Aventurin "]
["Edelsteine","Bergkristall "]
["Edelsteine","Bernstein "]
["Edelsteine","Chalcedon "]
["Edelsteine","Diamant "]
["Edelsteine","Dumortierit "]
["Edelsteine","Fluorit "]
["Edelsteine","Gold "]
["Edelsteine","Granat "]
["Edelsteine","Hämatit "]
["Edelsteine","Heliotrop "]
["Edelsteine","Jade "]
["Edelsteine","Jaspis "]
["Edelsteine","Karneol "]
["Edelsteine","Lapislazuli "]
["Edelsteine","Larimar "]
["Edelsteine","Mondstein "]
["Edelsteine","Mooqui Marbles, "]
["Edelsteine","Obsidian "]
["Edelsteine","Onyx "]
["Edelsteine","Opal "]
["Edelsteine","Peridot "]
["Edelsteine","Perle "]
["Edelsteine","Quarz "]
["Edelsteine","Rhodochrosit "]
["Edelsteine","Rhodonit "]
["Edelsteine","Rosenquarz "]
["Edelsteine","Rubin "]
["Edelsteine","Saphir "]
["Edelsteine","Silber "]
["Edelsteine","Smaragd "]
["Edelsteine","Sodalith "]
["Edelsteine","Sugilith "]
["Edelsteine","Tigerauge "]
["Edelsteine","Topas "]
["Edelsteine","Türkis "]
["Edelsteine","Turmalin "]
["Heilpflanzen","Akazienblüten (Robinia pseudoacacia)"]
["Heilpflanzen","Alantwurzel (Inula helenium)"]
["Heilpflanzen","Aloe Kap (oe capensis pulv.gros.)"]
["Heilpflanzen","Ampfer, Knöterichkraut (Polygonum lapathifolium)"]
["Heilpflanzen","Andornkraut (Marrubium vulgare)"]
["Heilpflanzen","Angelikasamen (changelicae officinalis)"]
["Heilpflanzen","Angelikawurzel (Archangelicae officinalis)"]
["Heilpflanzen","Anis (Anisi fructus)"]
["Heilpflanzen","Apfel getrocknet (Mali fructus)"]
["Heilpflanzen","Arnikablüten (Arnica montana)"]
["Heilpflanzen","Aroniafrüchte (Sorbi nigri fructus)"]
["Heilpflanzen","Artischockenblätter (Cynara scolymus)"]
["Heilpflanzen","Augentrostkraut (Euphrasia officinalis)"]
["Heilpflanzen","Baikal Helmkraut (Scutellaria baicalensis)"]
["Heilpflanzen","Baldrianwurzel (Valeriana officinale)"]
["Heilpflanzen","Bärentraubenblätter (Arctostaphylos uva-ursi)"]
["Heilpflanzen","Bärlappkraut (Lycopodium clavatum)"]
["Heilpflanzen","Bärlauchkraut (Allium ursinum)"]
["Heilpflanzen","Basilienkraut (Ocimum basilicum)"]
["Heilpflanzen","Beifußkraut (Artemisia vulgaris)"]
["Heilpflanzen","Beinwellwurzel (Symphytum officinale)"]
["Heilpflanzen","Betonienkraut (Betonica officinalis)"]
["Heilpflanzen","Birkenblätter (Betula alba)"]
["Heilpflanzen","Birnen Würfel getrocknet (Pyrus fructus)"]
["Heilpflanzen","Bischofskraut (Ammi visnaga)"]
["Heilpflanzen","Bitterholz (Quassiae lignum)"]
["Heilpflanzen","Bitterkleeblätter (Menyanthes trifoliata)"]
["Heilpflanzen","Blasentang (Fucus vesiculosus)"]
["Heilpflanzen","Bockshornkleesamen (Trigonella foenum-graecum)"]
["Heilpflanzen","Bohnenkraut (Satureja hortensis)"]
["Heilpflanzen","Bohnenschalen (Phaseolus vulgaris)"]
["Heilpflanzen","Boldoblätter (Peumus boldus)"]
["Heilpflanzen","Borretschkraut (Borago officinalis)"]
["Heilpflanzen","Brennesselblätter (Urtica dioica folium)"]
["Heilpflanzen","Brennesselkraut (Urtica dioica herba)"]
["Heilpflanzen","Brennesselwurzel (Urtica dioica radix)"]
["Heilpflanzen","Brombeerblätter (Rubus fruticosus)"]
["Heilpflanzen","Bruchkraut (Herniaria glabra)"]
["Heilpflanzen","Cayenne Pfeffer (Capsici annui fructus pulv.)"]
["Heilpflanzen","Chinarinde (Cinchona pubescens)"]
["Heilpflanzen","Citronellgras (Cymbopogon citratus)"]
["Heilpflanzen","Colombowurzel (Colombo radix)"]
["Heilpflanzen","Curacao pericarpium (Curacao pericarpium)"]
["Heilpflanzen","Dostkraut (Origanum vulgare)"]
["Heilpflanzen","Dreiteiliger Zweizahn (Bidens tripartita)"]
["Heilpflanzen","Ebereschenbeeren (Sorbus aucuparia)"]
["Heilpflanzen","Eberraute (Artemisia abrotanum)"]
["Heilpflanzen","Echinacea (Echinacea purpurea)"]
["Heilpflanzen","Efeu (Hederae helix)"]
["Heilpflanzen","Ehrenpreiskraut (Veronica officinalis)"]
["Heilpflanzen","Eibischblätter (Althea officinalis folium)"]
["Heilpflanzen","Eibischwurzel (Althea officinalis radix)"]
["Heilpflanzen","Eichenrinde (Quercus robur)"]
["Heilpflanzen","Eisenkraut (Verbena officinalis)"]
["Heilpflanzen","Enzianwurzel (Gentiana lutea)"]
["Heilpflanzen","Erdbeerblätter (Fragaria vesca)"]
["Heilpflanzen","Erd-Burzeldornkraut (Tribulus terestris herba)"]
["Heilpflanzen","Erdrauchkraut (Fumaria officinalis)"]
["Heilpflanzen","Erikablüten (Calluna vulgaris)"]
["Heilpflanzen","Erikakraut mit Blüten (Calluna vulgaris herba c.fl.)"]
["Heilpflanzen","Eschenblätter (Fraxinus excelsior)"]
["Heilpflanzen","Eucalyptusblätter (Eucalyptus globulus)"]
["Heilpflanzen","Färberginsterkraut (Genista tinctoria)"]
["Heilpflanzen","Faulbaumrinde (Rhamnus frangula)"]
["Heilpflanzen","Fenchel ganz (Foeniculum vulgare)"]
["Heilpflanzen","Flohsamen indisch gelb ganz (Plantago psyllium)"]
["Heilpflanzen","Flohsamenschalen (Plantago psyllium)"]
["Heilpflanzen","Frauenmantelkraut (Alchemilla vulgaris)"]
["Heilpflanzen","Galgantwurzel (Alpinia galanga)"]
["Heilpflanzen","Gänseblümchen ganz (Bellis perennis)"]
["Heilpflanzen","Gänsefingerkraut (Potentilla anserina)"]
["Heilpflanzen","Geisraute (Galega officinalis)"]
["Heilpflanzen","Ginkgo (Gingo bilobae folium)"]
["Heilpflanzen","Goldrute kanadisch (Solidaginis herba)"]
["Heilpflanzen","Goldrutenkraut echt (Solidago virgaurea)"]
["Heilpflanzen","Gotu kola (Hydrocotylis asia)"]
["Heilpflanzen","Grüner Tee Gunpowder (Thea green Gunpowder)"]
["Heilpflanzen","Guajakholz (Guaiacum officinale)"]
["Heilpflanzen","Guarana ganz (Paulinia cupana)"]
["Heilpflanzen","Gundermannkraut (Glechoma hederacea)"]
["Heilpflanzen","Haferstroh (Avena sativa)"]
["Heilpflanzen","Hagebutten mit Kern (Cynosbati fructus c.sem.cs.)"]
["Heilpflanzen","Hagebutten mit Kern (Cynosbati fructus tot.)"]
["Heilpflanzen","Hagebuttenschalen (Cynosbati fructus s.sem.gros)"]
["Heilpflanzen","Hamamelisblätter (Hamamelis virginiana)"]
["Heilpflanzen","Haselnussblätter (Corylli folium)"]
["Heilpflanzen","Hauhechelwurzel (Ononis spinosa)"]
["Heilpflanzen","Heidelbeeren (Vaccinium myrtillus)"]
["Heilpflanzen","Heidelbeerenblätter (Vaccinium myrtillus folium)"]
["Heilpflanzen","Herzgespannkraut (Leonurus cardiaca)"]
["Heilpflanzen","Hibiscusblüten (Hibisci flos cs.)"]
["Heilpflanzen","Hibiscusblüten Schalen (Hibisci flos sud. cs.gros)"]
["Heilpflanzen","Himbeerblätter (Rubus idaeus)"]
["Heilpflanzen","Hirtentäschelkraut (Capsella bursa-pastoris)"]
["Heilpflanzen","Hohlzahnkraut (Galeopsis segetum)"]
["Heilpflanzen","Holunderbeeren ganz - Sambucus nigra"]
["Heilpflanzen","Holunderblüten (Sambucus nigra)"]
["Heilpflanzen","Hopfen (Mumulus lupulus)"]
["Heilpflanzen","Huflattichblätter (Tussilago farfara folium)"]
["Heilpflanzen","Huflattichblüten (Tussilago farfara flos)"]
["Heilpflanzen","Ingw (Zingiberis rhizoma mund.cs.)"]
["Heilpflanzen","Ingwerwurzel geschält (Zingiberis rhiz. mund. p.g.)"]
["Heilpflanzen","Island Moos (Lichen islandicus)"]
["Heilpflanzen","Jasminblüten (Jasminum flos)"]
["Heilpflanzen","Johannisbeerblätter schwarz (Ribes nigri folium cs.)"]
["Heilpflanzen","Johannisbeeren schwarz (Ribes nigri fructus)"]
["Heilpflanzen","Johannisbrotsamen (Ceratonia siliqua)"]
["Heilpflanzen","Johanniskraut (Hypericum perforatum)"]
["Heilpflanzen","Kamille römische (Chamaemeum nobile)"]
["Heilpflanzen","Kamillenblüten europäisch (Matricaria chamomilla)"]
["Heilpflanzen","Kardamon mit Schale (Elettaria cardamomum)"]
["Heilpflanzen","Kardobenediktenkraut (Cnicus benedictus)"]
["Heilpflanzen","Katzenkralle (Vilcacora cortex cs.)"]
["Heilpflanzen","Kiefern Sprossen (Pini turio tot.)"]
["Heilpflanzen","Kondurangorinde (Condurango cortex.)"]
["Heilpflanzen","Königskerzenblüten (Verbascum thapsiforme)"]
["Heilpflanzen","Koriander ganz (Coriandr fructus)"]
["Heilpflanzen","Kornblumenblüten mit Kelch (Cyani flos c.c.)"]
["Heilpflanzen","Kornblumenblüten ohne Kelch (Cyani flos s.c.)"]
["Heilpflanzen","Krauseminze (Menthae crispa folium)"]
["Heilpflanzen","Kubebenpfeffer (Piper cubeba)"]
["Heilpflanzen","Kurkumawurzel (Curcumae radix)"]
["Heilpflanzen","Labkraut (Galii verum)"]
["Heilpflanzen","Lapachorinde (Tabebuia avellanedeae)"]
["Heilpflanzen","Lavendelblüten ganz (Lavendula officinalis)"]
["Heilpflanzen","Leinkraut (Linaria vulgaris)"]
["Heilpflanzen","Leinsamen hell ganz (Lini semen)"]
["Heilpflanzen","Liebstockwurzel (Levisticum officinale)"]
["Heilpflanzen","Limousinholz (Limousinae lignum)"]
["Heilpflanzen","Lindenblüten (Tilia platyphyllos)"]
["Heilpflanzen","Löffelkraut (Cochleariae herba)"]
["Heilpflanzen","Lorbeerblätter (Laurus nobilis cs.)"]
["Heilpflanzen","Lorbeerblätter ganz (Laurus nobilis tot.)"]
["Heilpflanzen","Löwenzahnwurzel  (Taraxacum officinale radix)"]
["Heilpflanzen","Lungenkraut (Pulmonaria officinalis)"]
["Heilpflanzen","Maishaare (Zea mays)"]
["Heilpflanzen","Malvenblätter (Malva mauritiana folium)"]
["Heilpflanzen","Malvenblüten blau (Malva mauritiana flos)"]
["Heilpflanzen","Maralwurzel (Leuzea carthamoides)"]
["Heilpflanzen","Mariendistelsamen (Silybum marianum)"]
["Heilpflanzen","Mateblätter (Mate tostum folium)"]
["Heilpflanzen","Mäusedorn (Rusci aculeati rhiz.)"]
["Heilpflanzen","Melissenkraut (Melissa officinalis)"]
["Heilpflanzen","Mistelkraut (Visci herba cs.)"]
["Heilpflanzen","Mönchspfeffer (Vitex agnus castus)"]
["Heilpflanzen","Muskatblüte (Macis flos)"]
["Heilpflanzen","Muskatnüsse (Myristica fragrans)"]
["Heilpflanzen","Mutterkraut (Pyrethrum Parthenium)"]
["Heilpflanzen","Myrrhenharz (Myrrha gummi)"]
["Heilpflanzen","Nelke (Caryophyllus aromaticus)"]
["Heilpflanzen","Nelkenwurzkraut (Geum urbanum)"]
["Heilpflanzen","Odermennigkraut (Agrimonia eupatoria)"]
["Heilpflanzen","Orangenschalen süß (Aurantii pericarpium dul.)"]
["Heilpflanzen","Passionsblumenkraut (Passiflora incarnata)"]
["Heilpflanzen","Pestwurz wurzel  (Petasites hybridus)"]
["Heilpflanzen","Pfefferminzkraut (Mentha piperita herba)"]
["Heilpflanzen","Pfingstrosenblüten (Paeonia officinalis)"]
["Heilpflanzen","Pomeränzchen unreif (Aurantii immat.fructus)"]
["Heilpflanzen","Pomeranzenblüten (Aurantii flos)"]
["Heilpflanzen","Pomeranzenschalen bitter (Aurantii pericarpium amar.)"]
["Heilpflanzen","Preiselbeerblätter mit Kraut (Vaccinium vitis Idaea)"]
["Heilpflanzen","Queckenwurzel (Graminis rhizoma)"]
["Heilpflanzen","Quendelkraut (Thymus serpyllum)"]
["Heilpflanzen","Rainfarnblätter (Tanacetum vulgare)"]
["Heilpflanzen","Ratanhiawurzel (Ratanhiae radix cs.)"]
["Heilpflanzen","Rhabarberwurzel (Rheum officinale)"]
["Heilpflanzen","Römischer wermut (Absinthii pontici)"]
["Heilpflanzen","Rooibos Rotbusch (Rooibos)"]
["Heilpflanzen","Rosenblüten Knospen (Rosae flos.)"]
["Heilpflanzen","Rosenblütenblätter (Rosa flos.)"]
["Heilpflanzen","Rosmarinblätter (Rosmarinus officinalis)"]
["Heilpflanzen","RosskastanienbIüten (Aesculus hippocastanum flos)"]
["Heilpflanzen","Rote Beete Wurzel (Beta vulgaris var.r. radix)"]
["Heilpflanzen","Salbeiblätter (Salvia officinalis folium)"]
["Heilpflanzen","Salbeikraut (Salvia officinalis herba)"]
["Heilpflanzen","Sanddornbeeren (Hippophae rhamnoides)"]
["Heilpflanzen","Sandelholz (Santalii lignum)"]
["Heilpflanzen","Sandstrohblumen / Katzenpfötchen (Helichrysum arena)"]
["Heilpflanzen","Schachtelhalmkraut (Equisetum arvense)"]
["Heilpflanzen","Schafgarbenblüten (Achillea millefolium flos)"]
["Heilpflanzen","Schafgarbenkraut (Achillea millefolium herba)"]
["Heilpflanzen","Schizandra Früchte (Schizandra chinensis)"]
["Heilpflanzen","Schlangen Knöterich Wurzel  (Polygonum bistorta)"]
["Heilpflanzen","Schlehdornblüten (Pruni spin.flos)"]
["Heilpflanzen","Schlehdornfrüchte (Pruni spin. fructus)"]
["Heilpflanzen","Schlüsselblumen (Primulae flos.)"]
["Heilpflanzen","Seifenwurzel (Saponaria officinalis)"]
["Heilpflanzen","Sennaschote (Sennae follic. tinn.)"]
["Heilpflanzen","Sennesblätter (Sennae folium)"]
["Heilpflanzen","Silber-Fingerkraut (Potentillae arg.herba)"]
["Heilpflanzen","Spitzwegerich (Plantago lanceolata)"]
["Heilpflanzen","Steinbrechkraut (Saxifraga granulata)"]
["Heilpflanzen","Steinkleekraut (Melilotus officinalis)"]
["Heilpflanzen","Steviablätter (Stevia rebaudiana (Bertoni))"]
["Heilpflanzen","Stiefmütterchenkraut (Viola tricolor)"]
["Heilpflanzen","Stockrosenblüten rot (Althea rosea)"]
["Heilpflanzen","Storchenschnabelkraut (Geranium robertianum)"]
["Heilpflanzen","Süßholzwurzel (Glycyrrhiza glabra)"]
["Heilpflanzen","Taigawurzel (Eleutherococcus senticocus)"]
["Heilpflanzen","Taubnesselblüten (Lamium album flos)"]
["Heilpflanzen","Taubnesselkraut (Lamium album herba)"]
["Heilpflanzen","Tausendgüldenkraut (Centaurium erythraea)"]
["Heilpflanzen","Teufelskralle (Harpagophyti radix)"]
["Heilpflanzen","Thymiankraut (Thymus vulgaris)"]
["Heilpflanzen","Tormentillwurzel (Tormentillae radix)"]
["Heilpflanzen","Veilchenwurzel nat. (Iridis rhizoma nat.)"]
["Heilpflanzen","VogeIknöterichkraut (Polygonum aviculare)"]
["Heilpflanzen","Wacholderbeeren rot ganz (Juniperus oxyced.)"]
["Heilpflanzen","Wacholderbeeren schwarz ganz (Juniperus comunis)"]
["Heilpflanzen","Walnussblätter (Juglans regia)"]
["Heilpflanzen","Wegwartenkraut (Cichorium intybus)"]
["Heilpflanzen","Weidenblätter (Salicis folium)"]
["Heilpflanzen","Weidenrinde (Salicis cortex)"]
["Heilpflanzen","Weihrauch (Olibanum gummi)"]
["Heilpflanzen","Weinrautekraut (Rutae graveolens)"]
["Heilpflanzen","Weißdornbeeren (Crataegi fructus)"]
["Heilpflanzen","Weißdornblätter (Crataegi folium)"]
["Heilpflanzen","Weißdornblüten (Crataegi flos)"]
["Heilpflanzen","Weisser Senf (Sinapsis alba semen)"]
["Heilpflanzen","Wiesenknopfwurzel (Sanguisorba officinalis)"]
["Heilpflanzen","Wolfstrappkraut (Lycopus europaeus)"]
["Heilpflanzen","Ysopkraut (Hyssopus officinalis)"]
["Heilpflanzen","Zimtblüten (Cinnamonum cassia flos)"]
["Heilpflanzen","Zimtrinde (Cinnamonum cassia cortex)"]
["Heilpflanzen","Zitronenschale (Citri pericarpium)"]
["Heilpflanzen","Zittwerwurzel (Zedoariae radix)"]
["Homöopathie","Abies nigra "]
["Homöopathie","Abrotanum "]
["Homöopathie","Acalypha indica "]
["Homöopathie","Acidum benzoicum "]
["Homöopathie","Acidum fluoricum "]
["Homöopathie","Acidum hydrochloricum "]
["Homöopathie","Acidum hydrocyanicum "]
["Homöopathie","Acidum nitricum "]
["Homöopathie","Acidum phosphoricum "]
["Homöopathie","Acidum picrinicum "]
["Homöopathie","Acidum sulfuricum "]
["Homöopathie","Aconitum napellus "]
["Homöopathie","Aesculus hippocastanum "]
["Homöopathie","Agaricus muscarius "]
["Homöopathie","Agnus castus "]
["Homöopathie","Ailanthus glandulosa "]
["Homöopathie","Aletris farinosa "]
["Homöopathie","Allium sativum "]
["Homöopathie","Aloe "]
["Homöopathie","Alumina "]
["Homöopathie","Ambra "]
["Homöopathie","Ammonium bromatum "]
["Homöopathie","Ammonium carbonicum "]
["Homöopathie","Anacardium orientale "]
["Homöopathie","Antimonium arsenicosum "]
["Homöopathie","Antimonium crudum "]
["Homöopathie","Antimonium sulfuratum aurantiacum "]
["Homöopathie","Apis mellifica "]
["Homöopathie","Apocynum cannabinum "]
["Homöopathie","Apomorphinum hydrochloricum "]
["Homöopathie","Aralia racemosa "]
["Homöopathie","Aranea diadema "]
["Homöopathie","Argentum metallicum "]
["Homöopathie","Argentum nitricum "]
["Homöopathie","Arnica montana "]
["Homöopathie","Arsenicum album "]
["Homöopathie","Arsenicum jodatum "]
["Homöopathie","Artemisia Cina "]
["Homöopathie","Arum triphyllum "]
["Homöopathie","Asa foetida "]
["Homöopathie","Asarum "]
["Homöopathie","Asclepias tuberosa "]
["Homöopathie","Atropinum "]
["Homöopathie","Aurum cloratum natronatum "]
["Homöopathie","Aurum colloidale "]
["Homöopathie","Aurum jodatum "]
["Homöopathie","Baptisia "]
["Homöopathie","Baryum carbonicum "]
["Homöopathie","Baryum chloratum "]
["Homöopathie","Baryum jodatum "]
["Homöopathie","Belladonna "]
["Homöopathie","Bellis perennis "]
["Homöopathie","Berberis "]
["Homöopathie","Bismutum subnitricum "]
["Homöopathie","Borax "]
["Homöopathie","Bovista "]
["Homöopathie","Bromum "]
["Homöopathie","Bryonia "]
["Homöopathie","Bufo rana "]
["Homöopathie","Cactus grandiflorus "]
["Homöopathie","Caladium seguinum "]
["Homöopathie","Calcium arsenicosum "]
["Homöopathie","Calcium carbonicum "]
["Homöopathie","Calcium fluoratum "]
["Homöopathie","Calcium jodatum "]
["Homöopathie","Calcium phosphoricum "]
["Homöopathie","Calcium sulfuricum "]
["Homöopathie","Calendula officinalis "]
["Homöopathie","Camphora "]
["Homöopathie","Cantharis "]
["Homöopathie","Capsicum "]
["Homöopathie","Carbo animalis "]
["Homöopathie","Carbo vegetabilis "]
["Homöopathie","Carduus marianus "]
["Homöopathie","Caulophyllum "]
["Homöopathie","Causticum Hahnemanni "]
["Homöopathie","Ceanothus americanus "]
["Homöopathie","Cedron "]
["Homöopathie","Cepa "]
["Homöopathie","Chamomilla "]
["Homöopathie","Chelidonium majus "]
["Homöopathie","Chimaphilia umbellata "]
["Homöopathie","China "]
["Homöopathie","Chininum arsenicosum "]
["Homöopathie","Chininum sulfuricum "]
["Homöopathie","Chionanthus virginica "]
["Homöopathie","Cholesterinum "]
["Homöopathie","Cicuta virosa "]
["Homöopathie","Cimicifuga racemosa "]
["Homöopathie","Cinnbaris "]
["Homöopathie","Clematis recta "]
["Homöopathie","Cobaltum metallicum "]
["Homöopathie","Cocculus "]
["Homöopathie","Coccus cacti "]
["Homöopathie","Coffea cruda "]
["Homöopathie","Colchicum autumnale "]
["Homöopathie","Collinsonia canadensis "]
["Homöopathie","Colocynthis "]
["Homöopathie","Condurango "]
["Homöopathie","Conium maculatum "]
["Homöopathie","Convallaria majalis "]
["Homöopathie","Corallium rubrum "]
["Homöopathie","Crocus sativus "]
["Homöopathie","Crotalus durissus "]
["Homöopathie","Croton tiglium "]
["Homöopathie","Cuprum aceticum "]
["Homöopathie","Cuprum arsenicosum "]
["Homöopathie","Cuprum metallicum "]
["Homöopathie","Cyclamen "]
["Homöopathie","Cypripedium pubescens "]
["Homöopathie","Digitalis "]
["Homöopathie","Dioscorea villosa "]
["Homöopathie","Dolichos pruriens "]
["Homöopathie","Drosera rotundifolia "]
["Homöopathie","Dulcamara "]
["Homöopathie","Echinacea angustifolia "]
["Homöopathie","Equisetum arvense "]
["Homöopathie","Erigeron canadensis "]
["Homöopathie","Eucalyptus "]
["Homöopathie","Eupatorium perfoliatum "]
["Homöopathie","Eupatorium purpureum "]
["Homöopathie","Euphorbium "]
["Homöopathie","Euphrasia "]
["Homöopathie","Fagopyrum esculentum "]
["Homöopathie","Ferrum arsenicosum "]
["Homöopathie","Ferrum metallicum "]
["Homöopathie","Ferrum phosphoricum "]
["Homöopathie","Ferrum picrinicum "]
["Homöopathie","Formica rufa "]
["Homöopathie","Gelsemium "]
["Homöopathie","Ginseng "]
["Homöopathie","Glonoinum "]
["Homöopathie","Gnaphalium polycephalum "]
["Homöopathie","Graphites "]
["Homöopathie","Grindelia robusta "]
["Homöopathie","Guajacum "]
["Homöopathie","Hamamelis virginiana "]
["Homöopathie","Hekla Lava "]
["Homöopathie","Helleborus niger "]
["Homöopathie","Helonias dioica "]
["Homöopathie","Hepar sulfuris calcareum "]
["Homöopathie","Hydrastis canadensis "]
["Homöopathie","Hydrocotyle asiatica "]
["Homöopathie","Hyoscyamus "]
["Homöopathie","Hypericum perforatum "]
["Homöopathie","Iberis amara "]
["Homöopathie","Ignatia "]
["Homöopathie","Ipecacuanha "]
["Homöopathie","Iris versicolor "]
["Homöopathie","Jaborandi "]
["Homöopathie","Jodum "]
["Homöopathie","Kalium bichromicum "]
["Homöopathie","Kalium bromatum "]
["Homöopathie","Kalium carbonicum "]
["Homöopathie","Kalium chloratum "]
["Homöopathie","Kalium jodatum "]
["Homöopathie","Kalium nitricum "]
["Homöopathie","Kalium phosphoricum "]
["Homöopathie","Kalium sulfuricum "]
["Homöopathie","Kalmia latifolia "]
["Homöopathie","Kreosotum "]
["Homöopathie","Lachesis "]
["Homöopathie","Latrodectus mactans "]
["Homöopathie","Laurocerasus "]
["Homöopathie","Ledum palustre "]
["Homöopathie","Lilium tigrinum "]
["Homöopathie","Lobelia inflata "]
["Homöopathie","Lupulus "]
["Homöopathie","Lycopodium "]
["Homöopathie","Lycopus virginicus "]
["Homöopathie","Magnesium carbonicum "]
["Homöopathie","Magnesium chloratum "]
["Homöopathie","Magnesium phosphoricum "]
["Homöopathie","Magnesium sulfuricum "]
["Homöopathie","Manganum metallicum "]
["Homöopathie","Mephistis mephistis "]
["Homöopathie","Mercurius cyanatus "]
["Homöopathie","Mercurius dulcis "]
["Homöopathie","Mercurius jodatus ruber "]
["Homöopathie","Mercurius sublimatus corrosivus "]
["Homöopathie","Mercurius sulfuricus "]
["Homöopathie","Mercurius vivus "]
["Homöopathie","Mezereum "]
["Homöopathie","Millefolium "]
["Homöopathie","Myrica cerifera "]
["Homöopathie","Myristica sebifera "]
["Homöopathie","Naja tripudians "]
["Homöopathie","Naphthalinum "]
["Homöopathie","Natrium carbonicum "]
["Homöopathie","Natrium muriaticum "]
["Homöopathie","Natrium phosphoricum "]
["Homöopathie","Natrium sulfuricum "]
["Homöopathie","Nux moschata "]
["Homöopathie","Nux vomica "]
["Homöopathie","Oenanthe crocata "]
["Homöopathie","Oleander "]
["Homöopathie","Paeonia officinalis "]
["Homöopathie","Pareira brava "]
["Homöopathie","Petroleum "]
["Homöopathie","Petroselinum "]
["Homöopathie","Phelandrium aquaticum "]
["Homöopathie","Phosphorus "]
["Homöopathie","Phytolacca decandra "]
["Homöopathie","Plantago major "]
["Homöopathie","Platinum metallicum "]
["Homöopathie","Plumbum metallicum "]
["Homöopathie","Podophyllum peltatum "]
["Homöopathie","Populus tremuloides "]
["Homöopathie","Psorinum "]
["Homöopathie","Pulsatilla "]
["Homöopathie","Pyrogenium "]
["Homöopathie","Ranunculus bulbosus "]
["Homöopathie","Rheum "]
["Homöopathie","Rhododendron "]
["Homöopathie","Rhus toxicodendron "]
["Homöopathie","Robinia pseudoacacia "]
["Homöopathie","Rumex crispus "]
["Homöopathie","Ruta graveolens "]
["Homöopathie","Sabadilla "]
["Homöopathie","Sabal serrulatum "]
["Homöopathie","Sabina "]
["Homöopathie","Sambucus nigra "]
["Homöopathie","Sanguinaria canadensis "]
["Homöopathie","Sarsaparilla "]
["Homöopathie","Scilla maritima "]
["Homöopathie","Secale cornutum "]
["Homöopathie","Selenium "]
["Homöopathie","Senecio aureus "]
["Homöopathie","Senega "]
["Homöopathie","Sepia officinalis "]
["Homöopathie","Silicea "]
["Homöopathie","Solidago virga aurea "]
["Homöopathie","Spigelia "]
["Homöopathie","Spongia tosta "]
["Homöopathie","Stannum metallicum "]
["Homöopathie","Staphysagria "]
["Homöopathie","Sticta pulmonaria "]
["Homöopathie","Stramonium "]
["Homöopathie","Strontium carbonicum "]
["Homöopathie","Strophanthus gratus "]
["Homöopathie","Strychninum phosphoricum "]
["Homöopathie","Sulfur "]
["Homöopathie","Sulfur jodatum "]
["Homöopathie","Symphytum officinale "]
["Homöopathie","Tabacum "]
["Homöopathie","Tarantula fasciiventris "]
["Homöopathie","Taraxacum officinale "]
["Homöopathie","Terebinthina "]
["Homöopathie","Teucrium scorodonia "]
["Homöopathie","Thallium sulfuricum "]
["Homöopathie","Thuja occidentalis "]
["Homöopathie","Trillium pendulum "]
["Homöopathie","Tuberculinum "]
["Homöopathie","Urtica urens "]
["Homöopathie","Ustilago maydis "]
["Homöopathie","Valeriana "]
["Homöopathie","Veratrum album "]
["Homöopathie","Veratrum viride "]
["Homöopathie","Verbascum thapsiforme "]
["Homöopathie","Viburnum opulus "]
["Homöopathie","Viola tricolor "]
["Homöopathie","Vipera berus "]
["Homöopathie","Viscum album "]
["Homöopathie","Zincum metallicum "]
["Homöopathie","Zincum valerianicum "]
["Homöopatische Hausapotheke","Acidum nitricum D12 "]
["Homöopatische Hausapotheke","Acidum sulfuricum D6 "]
["Homöopatische Hausapotheke","Aconitum D12"]
["Homöopatische Hausapotheke","Agaricus D12 "]
["Homöopatische Hausapotheke","Aloe D6"]
["Homöopatische Hausapotheke","Ambra D4"]
["Homöopatische Hausapotheke","Antimonium tartaricum C30 "]
["Homöopatische Hausapotheke","Antimonium tartaricum D6 "]
["Homöopatische Hausapotheke","Apis C30"]
["Homöopatische Hausapotheke","Arsenicum C30 "]
["Homöopatische Hausapotheke","Arum triphyllum D6 "]
["Homöopatische Hausapotheke","Belladonna C30"]
["Homöopatische Hausapotheke","Bellis perennis D6 "]
["Homöopatische Hausapotheke","Borax D6"]
["Homöopatische Hausapotheke","Cactus D12"]
["Homöopatische Hausapotheke","Calcium fluoratum D6 "]
["Homöopatische Hausapotheke","Capsicum D12"]
["Homöopatische Hausapotheke","Carbo vegetabilis C30 "]
["Homöopatische Hausapotheke","Causticum D12 "]
["Homöopatische Hausapotheke","Chamomilla C30 "]
["Homöopatische Hausapotheke","Chetidonium D4 "]
["Homöopatische Hausapotheke","Cinnabaris D12 "]
["Homöopatische Hausapotheke","Coccus cacti D6 "]
["Homöopatische Hausapotheke","Colchicum D6 "]
["Homöopatische Hausapotheke","Cuprum C30 "]
["Homöopatische Hausapotheke","Dioscorea villosa D6 "]
["Homöopatische Hausapotheke","Glonoinum D12 "]
["Homöopatische Hausapotheke","Hyoscyamus D12"]
["Homöopatische Hausapotheke","Ignatia C30"]
["Homöopatische Hausapotheke","Iris versicolor D6"]
["Homöopatische Hausapotheke","Kalium carbonicum D12"]
["Homöopatische Hausapotheke","Kalium iodatum D6 "]
["Homöopatische Hausapotheke","Lachesis C30"]
["Homöopatische Hausapotheke","lodum D12 "]
["Homöopatische Hausapotheke","Mercurius corrosivus D12"]
["Homöopatische Hausapotheke","Mezereum D12"]
["Homöopatische Hausapotheke","Millefolium D12"]
["Homöopatische Hausapotheke","Natrium chloratum C30 "]
["Homöopatische Hausapotheke","Natrium sulfuricum D6 "]
["Homöopatische Hausapotheke","Nuxvomica C30 "]
["Homöopatische Hausapotheke","Petroleum D12 "]
["Homöopatische Hausapotheke","Phosphorus C30 "]
["Homöopatische Hausapotheke","Podophyllum D8"]
["Homöopatische Hausapotheke","Rhododendron D6"]
["Homöopatische Hausapotheke","Robinia D4"]
["Homöopatische Hausapotheke","Sabadilla D6"]
["Homöopatische Hausapotheke","Sambucus nigra D3"]
["Homöopatische Hausapotheke","Sanguinaria D12"]
["Homöopatische Hausapotheke","Selenium D12"]
["Homöopatische Hausapotheke","Stramonium D12"]
["Homöopatische Hausapotheke","Tuberculinum C30"]
["Homöopatische Hausapotheke","Urtica urens D6"]
["Homöopatische Hausapotheke","Veratrum C30"]
["Homöopatische Hausapotheke","Zincum metallicum D12"]
["kalifornische Blütenessenzen","Aloe Vera "]
["kalifornische Blütenessenzen","Alpine Lily "]
["kalifornische Blütenessenzen","Angelica "]
["kalifornische Blütenessenzen","Angels's Trumpet "]
["kalifornische Blütenessenzen","Arnica "]
["kalifornische Blütenessenzen","Baby Blue Eyes "]
["kalifornische Blütenessenzen","Basil "]
["kalifornische Blütenessenzen","Black Cohosh "]
["kalifornische Blütenessenzen","Blackberry "]
["kalifornische Blütenessenzen","Black-Eyed-Susan "]
["kalifornische Blütenessenzen","Bleeding Heart "]
["kalifornische Blütenessenzen","Borage "]
["kalifornische Blütenessenzen","Buttercup "]
["kalifornische Blütenessenzen","Calendula "]
["kalifornische Blütenessenzen","California Pitcher Plant "]
["kalifornische Blütenessenzen","California Poppy "]
["kalifornische Blütenessenzen","California Wild Rose "]
["kalifornische Blütenessenzen","Calla Lilly "]
["kalifornische Blütenessenzen","Canyon Dudleya "]
["kalifornische Blütenessenzen","Cayenne "]
["kalifornische Blütenessenzen","Chamomile "]
["kalifornische Blütenessenzen","Chaparral "]
["kalifornische Blütenessenzen","Chrysanthemum "]
["kalifornische Blütenessenzen","Corn "]
["kalifornische Blütenessenzen","Cosmos "]
["kalifornische Blütenessenzen","Dandelion "]
["kalifornische Blütenessenzen","Deerbrush "]
["kalifornische Blütenessenzen","Dill "]
["kalifornische Blütenessenzen","Dogwood "]
["kalifornische Blütenessenzen","Easter Lily "]
["kalifornische Blütenessenzen","Echinacea "]
["kalifornische Blütenessenzen","Evening Primrose "]
["kalifornische Blütenessenzen","Fairy Lantern "]
["kalifornische Blütenessenzen","Fawn Lily "]
["kalifornische Blütenessenzen","Filaree "]
["kalifornische Blütenessenzen","Forget-Me-Not "]
["kalifornische Blütenessenzen","Fuchsia "]
["kalifornische Blütenessenzen","Garlic "]
["kalifornische Blütenessenzen","Golden Ear Drops "]
["kalifornische Blütenessenzen","Golden Yarrow "]
["kalifornische Blütenessenzen","Goldenrod "]
["kalifornische Blütenessenzen","Hibiscus "]
["kalifornische Blütenessenzen","Hound's Tongue "]
["kalifornische Blütenessenzen","Indian Paintbrush "]
["kalifornische Blütenessenzen","Indian Pink "]
["kalifornische Blütenessenzen","Iris "]
["kalifornische Blütenessenzen","Lady's Slipper "]
["kalifornische Blütenessenzen","Larkspur "]
["kalifornische Blütenessenzen","Lavender "]
["kalifornische Blütenessenzen","Lotus "]
["kalifornische Blütenessenzen","Love-Lies-Bleeding "]
["kalifornische Blütenessenzen","Madia "]
["kalifornische Blütenessenzen","Mallow "]
["kalifornische Blütenessenzen","Manzanita "]
["kalifornische Blütenessenzen","Mariposa Lily "]
["kalifornische Blütenessenzen","Milkweed "]
["kalifornische Blütenessenzen","Morning Glory "]
["kalifornische Blütenessenzen","Mountain Pennyroyal "]
["kalifornische Blütenessenzen","Mountain Pride "]
["kalifornische Blütenessenzen","Mugwort "]
["kalifornische Blütenessenzen","Mullein "]
["kalifornische Blütenessenzen","Nasturtium "]
["kalifornische Blütenessenzen","Nicotiana "]
["kalifornische Blütenessenzen","Oregon Grape "]
["kalifornische Blütenessenzen","Penstemon "]
["kalifornische Blütenessenzen","Peppermint "]
["kalifornische Blütenessenzen","Pink Monkeyflower "]
["kalifornische Blütenessenzen","Pink Yarrow "]
["kalifornische Blütenessenzen","Poison Oak "]
["kalifornische Blütenessenzen","Pomegranate "]
["kalifornische Blütenessenzen","Pretty Face "]
["kalifornische Blütenessenzen","Purple Monkeyflower "]
["kalifornische Blütenessenzen","Quaking Grass "]
["kalifornische Blütenessenzen","Queen Anne's Lace "]
["kalifornische Blütenessenzen","Quince "]
["kalifornische Blütenessenzen","Rabbitbrush "]
["kalifornische Blütenessenzen","Red Clover "]
["kalifornische Blütenessenzen","Rosemary "]
["kalifornische Blütenessenzen","Sage "]
["kalifornische Blütenessenzen","Sagebrush "]
["kalifornische Blütenessenzen","Saguaro "]
["kalifornische Blütenessenzen","Saint John´s Word "]
["kalifornische Blütenessenzen","Scarlet Monkeyflower "]
["kalifornische Blütenessenzen","Scotch Broom "]
["kalifornische Blütenessenzen","Self-Heal "]
["kalifornische Blütenessenzen","Shasta Daisy "]
["kalifornische Blütenessenzen","Shooting Star "]
["kalifornische Blütenessenzen","Snap Dragon "]
["kalifornische Blütenessenzen","Star Thistle "]
["kalifornische Blütenessenzen","Star Tulip "]
["kalifornische Blütenessenzen","Sticky Monkeyflower "]
["kalifornische Blütenessenzen","Sunflower "]
["kalifornische Blütenessenzen","Sweet Pea "]
["kalifornische Blütenessenzen","Tansy "]
["kalifornische Blütenessenzen","Tiger Lily "]
["kalifornische Blütenessenzen","Trillium "]
["kalifornische Blütenessenzen","Trumpet Vine "]
["kalifornische Blütenessenzen","Violet "]
["kalifornische Blütenessenzen","Yarrow "]
["kalifornische Blütenessenzen","Yarrow Special Formula "]
["kalifornische Blütenessenzen","Yellow Star Tulip "]
["kalifornische Blütenessenzen","Yerba Santa "]
["kalifornische Blütenessenzen","Zinnia "]
["Kraftformel","Ich achte meine ersten Einfälle."]
["Kraftformel","Ich arbeite gern."]
["Kraftformel","Ich atme."]
["Kraftformel","Ich bekomme alles, was ich brauche."]
["Kraftformel","Ich bekomme Hilfe."]
["Kraftformel","Ich bin aufrecht."]
["Kraftformel","Ich bin befreit."]
["Kraftformel","Ich bin bei mir."]
["Kraftformel","Ich bin beschützt."]
["Kraftformel","Ich bin beweglich."]
["Kraftformel","Ich bin ehrlich."]
["Kraftformel","Ich bin erfüllt."]
["Kraftformel","Ich bin geliebt."]
["Kraftformel","Ich bin gestärkt."]
["Kraftformel","Ich bin heil."]
["Kraftformel","Ich bin heiter."]
["Kraftformel","Ich bin hoffnungsvoll."]
["Kraftformel","Ich bin ich - du bist du."]
["Kraftformel","Ich bin in Ruhe ."]
["Kraftformel","Ich bin leicht."]
["Kraftformel","Ich bin mir sicher."]
["Kraftformel","Ich bin spontan."]
["Kraftformel","Ich bin stark."]
["Kraftformel","Ich bin tapfer."]
["Kraftformel","Ich bin voller Freude."]
["Kraftformel","Ich bin wach."]
["Kraftformel","Ich bin zentriert."]
["Kraftformel","Ich bin zuversichtlich."]
["Kraftformel","Ich bin, der ich bin."]
["Kraftformel","Ich bleibe bei mir."]
["Kraftformel","Ich bleibe mir treu."]
["Kraftformel","Ich blicke auf."]
["Kraftformel","Ich blicke nach vorne."]
["Kraftformel","Ich darf …"]
["Kraftformel","Ich empfinde."]
["Kraftformel","Ich entscheide mich."]
["Kraftformel","Ich entscheide selbst."]
["Kraftformel","Ich entspanne mich."]
["Kraftformel","Ich ergreife meine Lebenschance."]
["Kraftformel","Ich erhole mich."]
["Kraftformel","Ich erkenne das Maß."]
["Kraftformel","Ich erlaube Nähe."]
["Kraftformel","Ich erwarte das Positive."]
["Kraftformel","Ich fördere Leben."]
["Kraftformel","Ich fühle die Stille."]
["Kraftformel","Ich fühle mich ein."]
["Kraftformel","Ich fühle mich frei."]
["Kraftformel","Ich fühle mich frisch."]
["Kraftformel","Ich fühle mich geborgen."]
["Kraftformel","Ich fühle mich klar."]
["Kraftformel","Ich fühle mich wohl."]
["Kraftformel","Ich gebe gern."]
["Kraftformel","Ich gebe Raum."]
["Kraftformel","Ich gehe ins Leicht."]
["Kraftformel","Ich gehe meinen Weg."]
["Kraftformel","Ich gehöre dazu."]
["Kraftformel","Ich gestalte."]
["Kraftformel","Ich glaube, das sich alles fügt."]
["Kraftformel","Ich gönne mir …"]
["Kraftformel","Ich habe die Kraft."]
["Kraftformel","Ich habe die Macht."]
["Kraftformel","Ich habe Geduld."]
["Kraftformel","Ich habe Mut."]
["Kraftformel","Ich habe Schwung."]
["Kraftformel","Ich höre hin."]
["Kraftformel","Ich kann es."]
["Kraftformel","Ich komme durch."]
["Kraftformel","Ich komme entgegen."]
["Kraftformel","Ich lasse fließen, was fließen möchte."]
["Kraftformel","Ich lasse geschehen."]
["Kraftformel","Ich lasse locker."]
["Kraftformel","Ich lasse los."]
["Kraftformel","Ich lebe heute."]
["Kraftformel","Ich lebe."]
["Kraftformel","Ich lenke mein Denken."]
["Kraftformel","Ich lerne."]
["Kraftformel","Ich liebe."]
["Kraftformel","Ich nehme an."]
["Kraftformel","Ich nehme mich an, wie ich bin."]
["Kraftformel","Ich nehme mir Zeit."]
["Kraftformel","Ich nehme teil."]
["Kraftformel","Ich öffne mich."]
["Kraftformel","Ich respektiere."]
["Kraftformel","Ich schaffe es leicht."]
["Kraftformel","Ich schaffe es."]
["Kraftformel","Ich schöpfe aus der Quelle."]
["Kraftformel","Ich sehe den Sinn."]
["Kraftformel","Ich sehe die Entwicklungschance."]
["Kraftformel","Ich sehe hin."]
["Kraftformel","Ich sehe klar."]
["Kraftformel","Ich sehe neue Möglichkeiten."]
["Kraftformel","Ich sehe, was wichtig ist."]
["Kraftformel","Ich stehe fest."]
["Kraftformel","Ich stehe gerade."]
["Kraftformel","Ich traue mir."]
["Kraftformel","Ich trete vor."]
["Kraftformel","Ich tue den nächsten Schritt."]
["Kraftformel","Ich tue es."]
["Kraftformel","Ich tue, was ch kann."]
["Kraftformel","Ich überblicke die Situation."]
["Kraftformel","Ich übernehme die Verantwortung."]
["Kraftformel","Ich verfolge mein Ziel."]
["Kraftformel","Ich verzeihe mir."]
["Kraftformel","Ich wachse."]
["Kraftformel","Ich wage es."]
["Kraftformel","Ich weiß, es geht gut."]
["Kraftformel","Ich weiß, was ich will."]
["Kraftformel","Ich will es."]
["Kraftformel","Ich will Leben."]
["Kraftformel","Ich will, was ich will."]
["Kraftformel","Ich willige ein."]
["Kraftformel","Ich würdige und unterstütze."]
["Kraftformel","Ich zeige mich."]
["Natur-Kräuter","Aloe Kap (oe capensis pulv.gros.)"]
["Natur-Kräuter","Ampfer, Knöterichkraut (Polygonum lapathifolium)"]
["Natur-Kräuter","Andornkraut (Marrubium vulgare)"]
["Natur-Kräuter","Angelikasamen (changelicae officinalis)"]
["Natur-Kräuter","Angelikawurzel (Archangelicae officinalis)"]
["Natur-Kräuter","Anis (Anisi fructus)"]
["Natur-Kräuter","Apfel getrocknet (Mali fructus)"]
["Natur-Kräuter","Arnikablüten (Arnica montana)"]
["Natur-Kräuter","Aroniafrüchte (Sorbi nigri fructus)"]
["Natur-Kräuter","Artischockenblätter (Cynara scolymus)"]
["Natur-Kräuter","Augentrostkraut (Euphrasia officinalis)"]
["Natur-Kräuter","Baikal Helmkraut (Scutellaria baicalensis)"]
["Natur-Kräuter","Baldrianwurzel (Valeriana officinale)"]
["Natur-Kräuter","Bärentraubenblätter (Arctostaphylos uva-ursi)"]
["Natur-Kräuter","Bärlappkraut (Lycopodium clavatum)"]
["Natur-Kräuter","Bärlauchkraut (Allium ursinum)"]
["Natur-Kräuter","Basilienkraut (Ocimum basilicum)"]
["Natur-Kräuter","Beifußkraut (Artemisia vulgaris)"]
["Natur-Kräuter","Beinwellwurzel (Symphytum officinale)"]
["Natur-Kräuter","Betonienkraut (Betonica officinalis)"]
["Natur-Kräuter","Birkenblätter (Betula alba)"]
["Natur-Kräuter","Birnen Würfel getrocknet (Pyrus fructus)"]
["Natur-Kräuter","Bischofskraut (Ammi visnaga)"]
["Natur-Kräuter","Bitterholz (Quassiae lignum)"]
["Natur-Kräuter","Bitterkleeblätter (Menyanthes trifoliata)"]
["Natur-Kräuter","Blasentang (Fucus vesiculosus)"]
["Natur-Kräuter","Bockshornkleesamen (Trigonella foenum-graecum)"]
["Natur-Kräuter","Bohnenkraut (Satureja hortensis)"]
["Natur-Kräuter","Bohnenschalen (Phaseolus vulgaris)"]
["Natur-Kräuter","Boldoblätter (Peumus boldus)"]
["Natur-Kräuter","Borretschkraut (Borago officinalis)"]
["Natur-Kräuter","Brennesselblätter (Urtica dioica folium)"]
["Natur-Kräuter","Brennesselkraut (Urtica dioica herba)"]
["Natur-Kräuter","Brennesselwurzel (Urtica dioica radix)"]
["Natur-Kräuter","Brombeerblätter (Rubus fruticosus)"]
["Natur-Kräuter","Bruchkraut (Herniaria glabra)"]
["Natur-Kräuter","Cayenne Pfeffer (Capsici annui fructus pulv.)"]
["Natur-Kräuter","Chinarinde (Cinchona pubescens)"]
["Natur-Kräuter","Citronellgras (Cymbopogon citratus)"]
["Natur-Kräuter","Colombowurzel (Colombo radix)"]
["Natur-Kräuter","Curacao pericarpium (Curacao pericarpium)"]
["Natur-Kräuter","Dostkraut (Origanum vulgare)"]
["Natur-Kräuter","Dreiteiliger Zweizahn (Bidens tripartita)"]
["Natur-Kräuter","Ebereschenbeeren (Sorbus aucuparia)"]
["Natur-Kräuter","Eberraute (Artemisia abrotanum)"]
["Natur-Kräuter","Echinacea (Echinacea purpurea)"]
["Natur-Kräuter","Efeu (Hederae helix)"]
["Natur-Kräuter","Ehrenpreiskraut (Veronica officinalis)"]
["Natur-Kräuter","Eibischblätter (Althea officinalis folium)"]
["Natur-Kräuter","Eibischwurzel (Althea officinalis radix)"]
["Natur-Kräuter","Eichenrinde (Quercus robur)"]
["Natur-Kräuter","Eisenkraut (Verbena officinalis)"]
["Natur-Kräuter","Enzianwurzel (Gentiana lutea)"]
["Natur-Kräuter","Erdbeerblätter (Fragaria vesca)"]
["Natur-Kräuter","Erd-Burzeldornkraut (Tribulus terestris herba)"]
["Natur-Kräuter","Erdrauchkraut (Fumaria officinalis)"]
["Natur-Kräuter","Erikablüten (Calluna vulgaris)"]
["Natur-Kräuter","Erikakraut mit Blüten (Calluna vulgaris herba c.fl.)"]
["Natur-Kräuter","Eschenblätter (Fraxinus excelsior)"]
["Natur-Kräuter","Eucalyptusblätter (Eucalyptus globulus)"]
["Natur-Kräuter","Färberginsterkraut (Genista tinctoria)"]
["Natur-Kräuter","Faulbaumrinde (Rhamnus frangula)"]
["Natur-Kräuter","Fenchel ganz (Foeniculum vulgare)"]
["Natur-Kräuter","Flohsamen indisch gelb ganz (Plantago psyllium)"]
["Natur-Kräuter","Flohsamenschalen (Plantago psyllium)"]
["Natur-Kräuter","Frauenmantelkraut (Alchemilla vulgaris)"]
["Natur-Kräuter","Galgantwurzel (Alpinia galanga)"]
["Natur-Kräuter","Gänseblümchen ganz (Bellis perennis)"]
["Natur-Kräuter","Gänsefingerkraut (Potentilla anserina)"]
["Natur-Kräuter","Geisraute (Galega officinalis)"]
["Natur-Kräuter","Ginkgo (Gingo bilobae folium)"]
["Natur-Kräuter","Goldrute kanadisch (Solidaginis herba)"]
["Natur-Kräuter","Goldrutenkraut echt (Solidago virgaurea)"]
["Natur-Kräuter","Gotu kola (Hydrocotylis asia)"]
["Natur-Kräuter","Grüner Tee Gunpowder (Thea green Gunpowder)"]
["Natur-Kräuter","Guajakholz (Guaiacum officinale)"]
["Natur-Kräuter","Guarana ganz (Paulinia cupana)"]
["Natur-Kräuter","Gundermannkraut (Glechoma hederacea)"]
["Natur-Kräuter","Haferstroh (Avena sativa)"]
["Natur-Kräuter","Hagebutten mit Kern (Cynosbati fructus c.sem.cs.)"]
["Natur-Kräuter","Hagebutten mit Kern (Cynosbati fructus tot.)"]
["Natur-Kräuter","Hagebuttenschalen (Cynosbati fructus s.sem.gros)"]
["Natur-Kräuter","Hamamelisblätter (Hamamelis virginiana)"]
["Natur-Kräuter","Haselnussblätter (Corylli folium)"]
["Natur-Kräuter","Hauhechelwurzel (Ononis spinosa)"]
["Natur-Kräuter","Heidelbeeren (Vaccinium myrtillus)"]
["Natur-Kräuter","Heidelbeerenblätter (Vaccinium myrtillus folium)"]
["Natur-Kräuter","Herzgespannkraut (Leonurus cardiaca)"]
["Natur-Kräuter","Hibiscusblüten (Hibisci flos cs.)"]
["Natur-Kräuter","Hibiscusblüten Schalen (Hibisci flos sud. cs.gros)"]
["Natur-Kräuter","Himbeerblätter (Rubus idaeus)"]
["Natur-Kräuter","Hirtentäschelkraut (Capsella bursa-pastoris)"]
["Natur-Kräuter","Hohlzahnkraut (Galeopsis segetum)"]
["Natur-Kräuter","Holunderbeeren ganz - Sambucus nigra"]
["Natur-Kräuter","Holunderblüten (Sambucus nigra)"]
["Natur-Kräuter","Hopfen (Mumulus lupulus)"]
["Natur-Kräuter","Huflattichblätter (Tussilago farfara folium)"]
["Natur-Kräuter","Huflattichblüten (Tussilago farfara flos)"]
["Natur-Kräuter","Ingw (Zingiberis rhizoma mund.cs.)"]
["Natur-Kräuter","Ingwerwurzel geschält (Zingiberis rhiz. mund. p.g.)"]
["Natur-Kräuter","Island Moos (Lichen islandicus)"]
["Natur-Kräuter","Jasminblüten (Jasminum flos)"]
["Natur-Kräuter","Johannisbeerblätter schwarz (Ribes nigri folium cs.)"]
["Natur-Kräuter","Johannisbeeren schwarz (Ribes nigri fructus)"]
["Natur-Kräuter","Johannisbrotsamen (Ceratonia siliqua)"]
["Natur-Kräuter","Johanniskraut (Hypericum perforatum)"]
["Natur-Kräuter","Kamille römische (Chamaemeum nobile)"]
["Natur-Kräuter","Kamillenblüten europäisch (Matricaria chamomilla)"]
["Natur-Kräuter","Kardamon mit Schale (Elettaria cardamomum)"]
["Natur-Kräuter","Kardobenediktenkraut (Cnicus benedictus)"]
["Natur-Kräuter","Katzenkralle (Vilcacora cortex cs.)"]
["Natur-Kräuter","Kiefern Sprossen (Pini turio tot.)"]
["Natur-Kräuter","Kondurangorinde (Condurango cortex.)"]
["Natur-Kräuter","Königskerzenblüten (Verbascum thapsiforme)"]
["Natur-Kräuter","Koriander ganz (Coriandr fructus)"]
["Natur-Kräuter","Kornblumenblüten mit Kelch (Cyani flos c.c.)"]
["Natur-Kräuter","Kornblumenblüten ohne Kelch (Cyani flos s.c.)"]
["Natur-Kräuter","Krauseminze (Menthae crispa folium)"]
["Natur-Kräuter","Kubebenpfeffer (Piper cubeba)"]
["Natur-Kräuter","Kurkumawurzel (Curcumae radix)"]
["Natur-Kräuter","Labkraut (Galii verum)"]
["Natur-Kräuter","Lapachorinde (Tabebuia avellanedeae)"]
["Natur-Kräuter","Lavendelblüten ganz (Lavendula officinalis)"]
["Natur-Kräuter","Leinkraut (Linaria vulgaris)"]
["Natur-Kräuter","Leinsamen hell ganz (Lini semen)"]
["Natur-Kräuter","Liebstockwurzel (Levisticum officinale)"]
["Natur-Kräuter","Limousinholz (Limousinae lignum)"]
["Natur-Kräuter","Lindenblüten (Tilia platyphyllos)"]
["Natur-Kräuter","Löffelkraut (Cochleariae herba)"]
["Natur-Kräuter","Lorbeerblätter (Laurus nobilis cs.)"]
["Natur-Kräuter","Lorbeerblätter ganz (Laurus nobilis tot.)"]
["Natur-Kräuter","Löwenzahnwurzel  (Taraxacum officinale radix)"]
["Natur-Kräuter","Lungenkraut (Pulmonaria officinalis)"]
["Natur-Kräuter","Maishaare (Zea mays)"]
["Natur-Kräuter","Malvenblätter (Malva mauritiana folium)"]
["Natur-Kräuter","Malvenblüten blau (Malva mauritiana flos)"]
["Natur-Kräuter","Maralwurzel (Leuzea carthamoides)"]
["Natur-Kräuter","Mariendistelsamen (Silybum marianum)"]
["Natur-Kräuter","Mateblätter (Mate tostum folium)"]
["Natur-Kräuter","Mäusedorn (Rusci aculeati rhiz.)"]
["Natur-Kräuter","Melissenkraut (Melissa officinalis)"]
["Natur-Kräuter","Mistelkraut (Visci herba cs.)"]
["Natur-Kräuter","Mönchspfeffer (Vitex agnus castus)"]
["Natur-Kräuter","Muskatblüte (Macis flos)"]
["Natur-Kräuter","Muskatnüsse (Myristica fragrans)"]
["Natur-Kräuter","Mutterkraut (Pyrethrum Parthenium)"]
["Natur-Kräuter","Myrrhenharz (Myrrha gummi)"]
["Natur-Kräuter","Nelke (Caryophyllus aromaticus)"]
["Natur-Kräuter","Nelkenwurzkraut (Geum urbanum)"]
["Natur-Kräuter","Odermennigkraut (Agrimonia eupatoria)"]
["Natur-Kräuter","Orangenschalen süß (Aurantii pericarpium dul.)"]
["Natur-Kräuter","Passionsblumenkraut (Passiflora incarnata)"]
["Natur-Kräuter","Pestwurz wurzel  (Petasites hybridus)"]
["Natur-Kräuter","Pfefferminzkraut (Mentha piperita herba)"]
["Natur-Kräuter","Pfingstrosenblüten (Paeonia officinalis)"]
["Natur-Kräuter","Pomeränzchen unreif (Aurantii immat.fructus)"]
["Natur-Kräuter","Pomeranzenblüten (Aurantii flos)"]
["Natur-Kräuter","Pomeranzenschalen bitter (Aurantii pericarpium amar.)"]
["Natur-Kräuter","Preiselbeerblätter mit Kraut (Vaccinium vitis Idaea)"]
["Natur-Kräuter","Queckenwurzel (Graminis rhizoma)"]
["Natur-Kräuter","Quendelkraut (Thymus serpyllum)"]
["Natur-Kräuter","Rainfarnblätter (Tanacetum vulgare)"]
["Natur-Kräuter","Ratanhiawurzel (Ratanhiae radix cs.)"]
["Natur-Kräuter","Rhabarberwurzel (Rheum officinale)"]
["Natur-Kräuter","Römischer wermut (Absinthii pontici)"]
["Natur-Kräuter","Rooibos Rotbusch (Rooibos)"]
["Natur-Kräuter","Rosenblüten Knospen (Rosae flos.)"]
["Natur-Kräuter","Rosenblütenblätter (Rosa flos.)"]
["Natur-Kräuter","Rosmarinblätter (Rosmarinus officinalis)"]
["Natur-Kräuter","RosskastanienbIüten (Aesculus hippocastanum flos)"]
["Natur-Kräuter","Rote Beete Wurzel (Beta vulgaris var.r. radix)"]
["Natur-Kräuter","Salbeiblätter (Salvia officinalis folium)"]
["Natur-Kräuter","Salbeikraut (Salvia officinalis herba)"]
["Natur-Kräuter","Sanddornbeeren (Hippophae rhamnoides)"]
["Natur-Kräuter","Sandelholz (Santalii lignum)"]
["Natur-Kräuter","Sandstrohblumen / Katzenpfötchen (Helichrysum arena)"]
["Natur-Kräuter","Schachtelhalmkraut (Equisetum arvense)"]
["Natur-Kräuter","Schafgarbenblüten (Achillea millefolium flos)"]
["Natur-Kräuter","Schafgarbenkraut (Achillea millefolium herba)"]
["Natur-Kräuter","Schizandra Früchte (Schizandra chinensis)"]
["Natur-Kräuter","Schlangen Knöterich Wurzel  (Polygonum bistorta)"]
["Natur-Kräuter","Schlehdornblüten (Pruni spin.flos)"]
["Natur-Kräuter","Schlehdornfrüchte (Pruni spin. fructus)"]
["Natur-Kräuter","Schlüsselblumen (Primulae flos.)"]
["Natur-Kräuter","Seifenwurzel (Saponaria officinalis)"]
["Natur-Kräuter","Sennaschote (Sennae follic. tinn.)"]
["Natur-Kräuter","Sennesblätter (Sennae folium)"]
["Natur-Kräuter","Silber-Fingerkraut (Potentillae arg.herba)"]
["Natur-Kräuter","Spitzwegerich (Plantago lanceolata)"]
["Natur-Kräuter","Steinbrechkraut (Saxifraga granulata)"]
["Natur-Kräuter","Steinkleekraut (Melilotus officinalis)"]
["Natur-Kräuter","Steviablätter (Stevia rebaudiana (Bertoni))"]
["Natur-Kräuter","Stiefmütterchenkraut (Viola tricolor)"]
["Natur-Kräuter","Stockrosenblüten rot (Althea rosea)"]
["Natur-Kräuter","Storchenschnabelkraut (Geranium robertianum)"]
["Natur-Kräuter","Süßholzwurzel (Glycyrrhiza glabra)"]
["Natur-Kräuter","Taigawurzel (Eleutherococcus senticocus)"]
["Natur-Kräuter","Taubnesselblüten (Lamium album flos)"]
["Natur-Kräuter","Taubnesselkraut (Lamium album herba)"]
["Natur-Kräuter","Tausendgüldenkraut (Centaurium erythraea)"]
["Natur-Kräuter","Teufelskralle (Harpagophyti radix)"]
["Natur-Kräuter","Thymiankraut (Thymus vulgaris)"]
["Natur-Kräuter","Tormentillwurzel (Tormentillae radix)"]
["Natur-Kräuter","Veilchenwurzel nat. (Iridis rhizoma nat.)"]
["Natur-Kräuter","VogeIknöterichkraut (Polygonum aviculare)"]
["Natur-Kräuter","Wacholderbeeren rot ganz (Juniperus oxyced.)"]
["Natur-Kräuter","Wacholderbeeren schwarz ganz (Juniperus comunis)"]
["Natur-Kräuter","Walnussblätter (Juglans regia)"]
["Natur-Kräuter","Wegwartenkraut (Cichorium intybus)"]
["Natur-Kräuter","Weidenblätter (Salicis folium)"]
["Natur-Kräuter","Weidenrinde (Salicis cortex)"]
["Natur-Kräuter","Weihrauch (Olibanum gummi)"]
["Natur-Kräuter","Weinrautekraut (Rutae graveolens)"]
["Natur-Kräuter","Weißdornbeeren (Crataegi fructus)"]
["Natur-Kräuter","Weißdornblätter (Crataegi folium)"]
["Natur-Kräuter","Weißdornblüten (Crataegi flos)"]
["Natur-Kräuter","Weisser Senf (Sinapsis alba semen)"]
["Natur-Kräuter","Wiesenknopfwurzel (Sanguisorba officinalis)"]
["Natur-Kräuter","Wolfstrappkraut (Lycopus europaeus)"]
["Natur-Kräuter","Ysopkraut (Hyssopus officinalis)"]
["Natur-Kräuter","Zimtblüten (Cinnamonum cassia flos)"]
["Natur-Kräuter","Zimtrinde (Cinnamonum cassia cortex)"]
["Natur-Kräuter","Zitronenschale (Citri pericarpium)"]
["Natur-Kräuter","Zittwerwurzel (Zedoariae radix)"]
["Schuessler Salze","Nr. 1 Calcium Fluoratum"]
["Schuessler Salze","Nr. 10 Natrium Sulfuricum"]
["Schuessler Salze","Nr. 11 Silicea"]
["Schuessler Salze","Nr. 12 Calcium Sulfuricum"]
["Schuessler Salze","Nr. 13 Kalium Arsenicosum"]
["Schuessler Salze","Nr. 14 Kalium Bromatum"]
["Schuessler Salze","Nr. 15 Kalium Jodatum"]
["Schuessler Salze","Nr. 16 Lithium Chloratum"]
["Schuessler Salze","Nr. 17 Manganum Sulfuricum"]
["Schuessler Salze","Nr. 18 Calcium Sulfuratum"]
["Schuessler Salze","Nr. 19 Cuprum Arsenicosum"]
["Schuessler Salze","Nr. 2 Calcium Phosphoricum"]
["Schuessler Salze","Nr. 20 Kalium aluminium Sulfuricum"]
["Schuessler Salze","Nr. 21 Zincum Chloratum"]
["Schuessler Salze","Nr. 22 Calcium Carbonicum"]
["Schuessler Salze","Nr. 23 Natrium Bicarbonicum"]
["Schuessler Salze","Nr. 24 Arsenum Jodatum"]
["Schuessler Salze","Nr. 25 Aurum Chloratum Natronatum"]
["Schuessler Salze","Nr. 26 Selenium"]
["Schuessler Salze","Nr. 27 Kalium Bichromicum"]
["Schuessler Salze","Nr. 3 Ferrum Phosphoricum"]
["Schuessler Salze","Nr. 4 Kalium Chloratum"]
["Schuessler Salze","Nr. 5 Kalium Phosphoricum"]
["Schuessler Salze","Nr. 6 Kalium Sulfuricum"]
["Schuessler Salze","Nr. 7. Magnesium Phosphoricum"]
["Schuessler Salze","Nr. 8 Natrium Chloratum"]
["Schuessler Salze","Nr. 9 Natrium Phosphoricum"]
["Spagyrik (Dr.Zymbel) ","Achillea millefolium (Schafgarbe)"]
["Spagyrik (Dr.Zymbel) ","Aconitum napellus (Eisenhut)"]
["Spagyrik (Dr.Zymbel) ","Aesculus hippocastanum (Rosskastanie)"]
["Spagyrik (Dr.Zymbel) ","Agnus castus (Keuschlamm, Mönchspfeffer)"]
["Spagyrik (Dr.Zymbel) ","Allium cepa (Küchenzwiebel)"]
["Spagyrik (Dr.Zymbel) ","Allium sativum (Knoblauch)"]
["Spagyrik (Dr.Zymbel) ","Amygdala amara (Bittermandel)"]
["Spagyrik (Dr.Zymbel) ","Angelica archangelic (Engelwurz)"]
["Spagyrik (Dr.Zymbel) ","Aralia racemosa (Amerikanische Narde)"]
["Spagyrik (Dr.Zymbel) ","Arnica montana (Bergarnika)"]
["Spagyrik (Dr.Zymbel) ","Artemisia absinthium (Wermut)"]
["Spagyrik (Dr.Zymbel) ","Artemisia vulgaris (Beifuss)"]
["Spagyrik (Dr.Zymbel) ","Avena sativa (Hafer)"]
["Spagyrik (Dr.Zymbel) ","Azadirachta indica (Neem, Baumapotheke des Dorfes)"]
["Spagyrik (Dr.Zymbel) ","Belladonna atropa (Tollkirsche)"]
["Spagyrik (Dr.Zymbel) ","Bellis perennis (Gänseblümchen)"]
["Spagyrik (Dr.Zymbel) ","Betula alba (Weisse Birke)"]
["Spagyrik (Dr.Zymbel) ","Bryonia alba (Zaunrübe)"]
["Spagyrik (Dr.Zymbel) ","Calendula officinalis (Ringelblume)"]
["Spagyrik (Dr.Zymbel) ","Cardiospermum halicacabum (Ballonpflanze, Herzsame)"]
["Spagyrik (Dr.Zymbel) ","Carduus marianus (Mariendistel)"]
["Spagyrik (Dr.Zymbel) ","Catharanthus roseus (Immergrün von Madagaskar)"]
["Spagyrik (Dr.Zymbel) ","Chelidonium majus (Schöllkraut)"]
["Spagyrik (Dr.Zymbel) ","China (Chinarinde)"]
["Spagyrik (Dr.Zymbel) ","Cimicifuga racemosa (Wanzenkraut)"]
["Spagyrik (Dr.Zymbel) ","Coffea arabica (Kaffee)"]
["Spagyrik (Dr.Zymbel) ","Convallaria majalis (Maiglöckchen)"]
["Spagyrik (Dr.Zymbel) ","Crataegus (Weissdorn)"]
["Spagyrik (Dr.Zymbel) ","Cynara scolymus (Artischocke)"]
["Spagyrik (Dr.Zymbel) ","Datura stramonium (Stechapfel)"]
["Spagyrik (Dr.Zymbel) ","Dioscorea villosa (Yamswurzel)"]
["Spagyrik (Dr.Zymbel) ","Drosera (Sonnentau)"]
["Spagyrik (Dr.Zymbel) ","Echinacea (Schmalblättrige Kegelblume)"]
["Spagyrik (Dr.Zymbel) ","Echinacea pallida (Blasser Sonnenhut)"]
["Spagyrik (Dr.Zymbel) ","Echinacea purpurea (Roter Sonnenhut)"]
["Spagyrik (Dr.Zymbel) ","Eleutherococcus senticosus (Sibirischer Ginseng, Russischer Taigawurzel)"]
["Spagyrik (Dr.Zymbel) ","Ephedra (Meerträubchen)"]
["Spagyrik (Dr.Zymbel) ","Equisetum arvense (Schachtelhalm)"]
["Spagyrik (Dr.Zymbel) ","Eupatorium perfoliatum (Wasserhanf, Fiebergras)"]
["Spagyrik (Dr.Zymbel) ","Euphrasia (Augentrost)"]
["Spagyrik (Dr.Zymbel) ","Fagopyrum esculentum (Buchweizen)"]
["Spagyrik (Dr.Zymbel) ","Fucus (Blasentang)"]
["Spagyrik (Dr.Zymbel) ","Galium odoratum (Waldmeister)"]
["Spagyrik (Dr.Zymbel) ","Gelsemium sempervirens (Wilder Jasmin)"]
["Spagyrik (Dr.Zymbel) ","Gentiana lutea (Enzian)"]
["Spagyrik (Dr.Zymbel) ","Ginkgo biloba (Ginkgobaum)"]
["Spagyrik (Dr.Zymbel) ","Humulus lupulus (Hopfen)"]
["Spagyrik (Dr.Zymbel) ","Hydrastis canadensis (Kanadische Gelbwurz)"]
["Spagyrik (Dr.Zymbel) ","Hypericum perforatum (Johanniskraut)"]
["Spagyrik (Dr.Zymbel) ","Iberis amara (Bittere Schleifenblume)"]
["Spagyrik (Dr.Zymbel) ","Iris (Schwertlilie)"]
["Spagyrik (Dr.Zymbel) ","Juniperus communis (Wacholder)"]
["Spagyrik (Dr.Zymbel) ","Lobelia inflata (Indianischer Tabak)"]
["Spagyrik (Dr.Zymbel) ","Lycopodium clavatum (Bärlapp)"]
["Spagyrik (Dr.Zymbel) ","Malva silvestris (Käsepappel)"]
["Spagyrik (Dr.Zymbel) ","Mandragora officinalis (Alraune)"]
["Spagyrik (Dr.Zymbel) ","Matricaria chamomilla (Kamille)"]
["Spagyrik (Dr.Zymbel) ","Melilotus (Steinklee)"]
["Spagyrik (Dr.Zymbel) ","Melissa officinalis (Zitronenmelisse)"]
["Spagyrik (Dr.Zymbel) ","Mentha piperita (Pfefferminze)"]
["Spagyrik (Dr.Zymbel) ","Nicotiana tabacum (Tabak)"]
["Spagyrik (Dr.Zymbel) ","Nuphar luteum (Gelbe Teichrose)"]
["Spagyrik (Dr.Zymbel) ","Nux vomica (Brechnuss)"]
["Spagyrik (Dr.Zymbel) ","Okoubaka aubrevillei (Okoubaka)"]
["Spagyrik (Dr.Zymbel) ","Phytolacca decandra (Kermesbeere)"]
["Spagyrik (Dr.Zymbel) ","Pilocarpus (Jaborandi)"]
["Spagyrik (Dr.Zymbel) ","Piper methysticum (Kawa-Kawa)"]
["Spagyrik (Dr.Zymbel) ","Podophyllum peltatum (Maiapfel, Fussblatt, Entenfuss)"]
["Spagyrik (Dr.Zymbel) ","Propolis (Bienenkittharz)"]
["Spagyrik (Dr.Zymbel) ","Pulsatilla (Kuhschelle)"]
["Spagyrik (Dr.Zymbel) ","Quercus (Eiche)"]
["Spagyrik (Dr.Zymbel) ","Rauwolfia serpentina (Rauwolfie)"]
["Spagyrik (Dr.Zymbel) ","Rhus toxicodendron (Giftsumach)"]
["Spagyrik (Dr.Zymbel) ","Rosmarinus officinalis (Rosmarin)"]
["Spagyrik (Dr.Zymbel) ","Ruta graveolens (Weinraute)"]
["Spagyrik (Dr.Zymbel) ","Sabal serrulatum (Zwergpalme)"]
["Spagyrik (Dr.Zymbel) ","Salvia officinalis (Salbei)"]
["Spagyrik (Dr.Zymbel) ","Sambucus nigra (Schwarzer Holunder)"]
["Spagyrik (Dr.Zymbel) ","Sarsaparilla (Sarsaparille, Stechwinde)"]
["Spagyrik (Dr.Zymbel) ","Solanum dulcamara (Bittersüss)"]
["Spagyrik (Dr.Zymbel) ","Solidago virgaurea (Gemeine Goldrute)"]
["Spagyrik (Dr.Zymbel) ","Symphytum officinale (Beinwell)"]
["Spagyrik (Dr.Zymbel) ","Taraxacum officinale (Löwenzahn)"]
["Spagyrik (Dr.Zymbel) ","Taxus baccata (Eibe)"]
["Spagyrik (Dr.Zymbel) ","Thuja occidentalis (Lebensbaum)"]
["Spagyrik (Dr.Zymbel) ","Thymus vulgaris (Thymian)"]
["Spagyrik (Dr.Zymbel) ","Tilia (Linde)"]
["Spagyrik (Dr.Zymbel) ","Tropaeolum majus (Grosse Kapuzinerkresse)"]
["Spagyrik (Dr.Zymbel) ","Urtica (Grosse Brennnessel)"]
["Spagyrik (Dr.Zymbel) ","Vaccinium myrtillus (Heidelbeere)"]
["Spagyrik (Dr.Zymbel) ","Valeriana officinalis (Baldrian)"]
["Spagyrik (Dr.Zymbel) ","Vinca minor (Kleines Immergrün)"]
["Spagyrik (Dr.Zymbel) ","Viola tricolor (Ackerstiefmütterchen)"]
["Spagyrik (Dr.Zymbel) ","Viscum album (Mistel)"]
["Spagyrik (Dr.Zymbel) ","Yohimbe (Yohimbérinde)"]

{"sheet":"arszWksRemediesTemplate","index":14,"n_rows":60,"n_cols":8,"rows_kept":60,"cut":false,"hidden":true,"merged":[[4,0,4,5],[5,0,5,5],[40,0,40,5],[1,3,1,5]]}
[]
[null,null,null,"Schuessler Salze\nNr. 15 Kalium Jodatum"]
[]
[]
["Komplexmittel (ein Blatt für die gesamte Sitzung)"]
[{"$f":"\"Rate: \"&H7&H8&H9&H10&H11&H12&H13&H14","v":"Rate: 82454548"},null,null,null,null,null,null,"Rate:"]
[null,null,null,null,null,null,null,{"$f":"RANDBETWEEN(1,9)","v":8}]
[null,null,null,null,null,null,null,{"$f":"RANDBETWEEN(1,9)","v":2}]
[null,null,null,null,null,null,null,4]
[null,null,null,null,null,null,null,5]
[null,null,null,null,null,null,null,4]
[null,null,null,null,null,null,null,5]
[null,null,null,null,null,null,null,4]
[null,null,null,null,null,null,null,8]
[]
[]
[]
[]
[]
[]
[]
[]
[]
[]
[]
[]
[]
[]
[]
[]
[]
[]
[]
[]
[]
[]
[]
[]
[]
[]
["Stellen Sie ein Glas Wasser für 10 Minuten\nauf das Bild und trinken Sie es\nin kleinen Schlücken und in aller Ruhe!"]
[]
[]
[]
[]
[null,"Chakra","Farbe"]
[]
[null,"7."]
[]
[null,"6."]
[]
[null,"5."]
[]
[null,"4."]
[]
[null,"3."]
[]
[null,"2."]
[]
[null,"1."]

{"sheet":"arszWksDescriptionsTemplate","index":15,"n_rows":12,"n_cols":4,"rows_kept":12,"cut":false,"hidden":true,"merged":[[9,3,9,4],[11,3,11,4],[1,3,1,5],[5,2,5,4],[7,2,7,4]]}
[]
[null,null,null,"Affirmationen\nIch bin erfolgreich"]
[]
[]
[null,"DNS allgemein"]
[null,null,"DNS ist die Abkürzung für ein chemisches Element, das unsere Erbanlage auf der physischen Ebene beschreibt. Die meisten Anlagen eines Menschen bestehen nur auf der geistigen Ebene und haben auf der physischen Ebene in der DNS keine Repräsentanz (vielleicht auch noch nicht ganz erforscht). Auch für die rein geistigen Anlagen verwenden wir den Begriff DNS (obgleich nicht ganz korrekt). "]
[null,"1. DNS Lebenskraft"]
[null,null,"Die Erbanlage „Lebenskraft“ ist der einzige DNS Strang der physisch ausgebildet ist und den die Wissenschaft kennt. Durch ihn erhalten wir die Fähigkeiten mit einem Körper das irdische Leben zu meistern."]
[null,"4. Herz-Chakra"]
[null,null,null,"Chakren sind feinstoffliche Kraftwirbel, die unseren Körper mit Energie versorgen.\nDas 4. Chakra ist das Herzchakra. Dies ist das wichtigste. Es bezieht sich auf die Fähigkeit zu Lieben."]
[null,null,"<40"]
[null,null,null,"Bei einer Aktivierung von unter 40% ist die Fähigkeit zur bedingungslosen Liebe oft gestört."]

{"sheet":"Beschreibungen","index":16,"n_rows":99,"n_cols":4,"rows_kept":99,"cut":false,"hidden":true,"merged":[[88,3,88,4],[90,2,90,4],[92,3,92,4],[94,3,94,4],[96,3,96,4],[98,3,98,4],[76,3,76,4],[78,3,78,4],[80,2,80,4],[82,3,82,4],[84,3,84,4],[86,3,86,4],[64,3,64,4],[66,3,66,4],[68,3,68,4],[70,2,70,4],[72,3,72,4],[74,3,74,4],[52,3,52,4],[54,3,54,4],[56,3,56,4],[58,3,58,4],[60,2,60,4],[62,3,62,4],[40,2,40,4],[42,3,42,4],[44,3,44,4],[46,3,46,4],[48,3,48,4],[50,2,50,4],[27,2,27,4],[30,2,30,4],[32,3,32,4],[34,3,34,4],[36,3,36,4],[38,3,38,4],[15,2,15,4],[17,2,17,4],[19,2,19,4],[21,2,21,4],[23,2,23,4],[25,2,25,4],[3,2,3,4],[5,2,5,4],[7,2,7,4],[9,2,9,4],[11,2,11,4],[13,2,13,4]]}
[]
[]
[null,"DNS allgemein"]
["DNS_0",null,"DNS ist die Abkürzung für ein chemisches Element, das unsere Erbanlage auf der physischen Ebene beschreibt. Die meisten Anlagen eines Menschen bestehen nur auf der geistigen Ebene und haben auf der physischen Ebene in der DNS keine Repräsentanz (vielleicht auch noch nicht ganz erforscht). Auch für die rein geistigen Anlagen verwenden wir den Begriff DNS (obgleich nicht ganz korrekt). "]
[null,"1. DNS Lebenskraft"]
["DNS_0_1",null,"Die Erbanlage „Lebenskraft“ ist der einzige DNS Strang der physisch ausgebildet ist und den die Wissenschaft kennt. Durch ihn erhalten wir die Fähigkeiten mit einem Körper das irdische Leben zu meistern."]
[null,"2. DNS Lebensziel"]
["DNS_0_2",null,"Diese Anlage „Lebensziel“ wird auf der physischen Ebenen nicht durch einen DNS Strang repräsentiert. Das Lebensziel beschreibt unseren Lebensplan und die Lernziele, die erreicht werden sollen. Diese Informationen sind sehr ähnlich mit dem Inhalt eines Geburtshoroskopes."]
[null,"3. DNS Schöpferkraft"]
["DNS_0_3",null,"Mit der „Schöpferkraft“ wird unser Potential zum Erschaffen auf der irdischen Ebene definiert. Dies bezieht sich nicht nur auf das Zeugen von Nachkommen, sondern ganz allgemein auf das Erschaffen von Werken, die unsere Existenz überdauern."]
[null,"4. Wohlbefinden"]
["DNS_0_4",null,"Mit „Wohlbefinden“ befinden wir uns auf der emotionalen oder auch seelischen Ebene. Es geht um die Harmonisierung der Gefühle um dadurch im Einklang mit der Umwelt zu leben. Unsere unkontrollierten Emotionen verursachen oft chronische Krankheiten."]
[null,"5. Lebensfreude"]
["DNS_0_5",null,"Die „Lebensfreude“ entsteht nicht durch so genannte äußere „glückliche“ Umstände, sondern sie ist wie eine Fähigkeit anzusehen, die aus Harmonie und Ausgeglichenheit Freude aufkommen lässt."]
[null,"6. Wahrhaftigkeit"]
["DNS_0_6",null,"Diese Anlage zur „Wahrhaftigkeit“ bezeichnet das Streben einen Sachverhalt durch Gedanken, Worte und Taten richtig darzustellen. Auch das Bemühen sich nicht selbst zu täuschen und sich nicht etwas einzureden fällt unter diese Charakteranlage. Wahrhaftigkeit bezieht sich auf eine authentische Lebensumgebung und Lebensführung, d.h. dort leben und das tun, mit dem man sich identifizieren kann."]
[null,"7. Ordnung"]
["DNS_0_7",null,"Mit „Ordnung“ wird die erste der drei geistigen Ebenen bezeichnet. Ordnung beruht auf Übersicht, Einsicht, und Umsicht, also Sichtweisen, die eine Strukturierung der Realität ermöglichen und somit die Vorstufe zur Weisheit bilden."]
[null,"8. Weisheit"]
["DNS_0_8",null,"„Weisheit“ liegt vor, wenn ein umfangreicher Fundus an Wissen und Erfahrung erworben wurde und in der Praxis auch angewendet wird. In der Esoterik spricht man von „alten“ Seelen."]
[null,"9. Harmonie"]
["DNS_0_9",null,"„Harmonie“ ist die höchste Ausdrucksform von Ordnung und Weisheit. Harmonie ist auch ein Ausdruck von Schönheit. Durch Harmonie öffnet sich die Tür zur Spiritualität."]
[null,"10. Sein"]
["DNS_0_10",null,"„Ich BIN der ich bin“ ist das „Sein“ (Geisteshaltung) eines erwachten Bewusstseins. Im Zustand des vollkommenen Seins besitzt man unbegrenztes Schöpfungspotentials. In manchen spirituellen Traditionen wird diese Ebene als die Kausalebene bezeichnet. Gedanken auf dieser Ebene werden zwingend zur Realität."]
[null,"11. Bewusstsein"]
["DNS_0_11",null,"Wird die Ebene des „Bewusstseins“ erreicht, so verfügt man über ein allumfassendes kosmisches Bewusstsein. Vergangenheit, Gegenwart und Zukunft werden eins. Man kann nicht mehr einfach wegsehen, sondern man ist automatisch ein Teil, dessen was geschieht und somit gezwungen mit-zu-empfinden aber nicht mit-zu-leiden. Dies ist der göttliche Zustand von „Allem in Allem“."]
[null,"12. Glückseligkeit"]
["DNS_0_12",null,"„Glückseligkeit“ Ist eine göttliche Eigenschaft, die auf der Erde nur sehr schwer zu erreichen ist. Das war auch nicht im ursprünglichen Plan vorgesehen. Glückseligkeit kann nicht angestrebt werden, sondern ergibt sich von selbst als ein Zustand, wie er sich nach einer erfolgreich vollendeten „Aufgabe“ einstellt."]
[]
[null,"7. Scheitel-Chakra"]
["CH_7",null,"Chakren sind feinstoffliche Kraftwirbel, die unseren Körper mit Energie versorgen.  \nDas 7. Chakra ist das Scheitelchakra. Es sagt etwas aus über die Anbindung des Menschen an die geistige und spirituelle Welt."]
[null,null,"<40"]
["CH_7_40",null,null,"Bei einer Aktivierung von weniger als 40% wird der Umgang mit Religion und Spiritualität schwierig."]
[null,null,"<30"]
["CH_7_30",null,null,"Bei einer Aktivierung von weniger als 30% wird der Umgang mit Religion und Spiritualität sehr schwierig."]
[null,null,"<20"]
["CH_7_20",null,null,"Bei einer Aktivierung von weniger als 20% wird der Umgang mit Religion und Spiritualität für die Lebenskraft extrem schwierig."]
[null,null,"<10"]
["CH_7_10",null,null,"Bei einer Aktivierung von weniger als 10% wird der Umgang mit Religion und Spiritualität ausgesprochen extrem schwierig."]
[null,"6. Stirn-Chakra"]
["CH_6",null,"Chakren sind feinstoffliche Kraftwirbel, die unseren Körper mit Energie versorgen.\nDas 6. Chakra ist das Stirnchakra. Es gibt uns Hinweise auf die geistigen Fähigkeiten also den Intellekt des Menschen."]
[null,null,"<40"]
["CH_6_40",null,null,"Bei einer Aktivierung von weniger als 40% handelt es sich um eine schwache Intelligenz."]
[null,null,"<30"]
["CH_6_30",null,null,"Bei einer Aktivierung von weniger als 30% handelt es sich um eine sehr schwache Intelligenz."]
[null,null,"<20"]
["CH_6_20",null,null,"Bei einer Aktivierung von weniger als 20% handelt es sich um eine extrem schwache Intelligenz."]
[null,null,"<10"]
["CH_6_10",null,null,"Bei einer Aktivierung von weniger als 10% handelt es sich um eine ausgesprochen extrem schwache Intelligenz."]
[null,"5. Hals-Chakra"]
["CH_5",null,"Chakren sind feinstoffliche Kraftwirbel, die unseren Körper mit Energie versorgen.\nDas 5. Chakra ist das Halschakra. Es bezieht sich auf die Fähigkeit zu Kommunizieren."]
[null,null,"<40"]
["CH_5_40",null,null,"Bei einer Aktivierung von weniger als 40% ist die Ausdrucksfähigkeit durch Schrift, Spache und Mimik problematisch."]
[null,null,"<30"]
["CH_5_30",null,null,"Bei einer Aktivierung von weniger als 30% ist die Ausdrucksfähigkeit durch Schrift, Spache und Mimik sehr problematisch."]
[null,null,"<20"]
["CH_5_20",null,null,"Bei einer Aktivierung von weniger als 20% ist die Ausdrucksfähigkeit durch Schrift, Spache und Mimik extrem problematisch."]
[null,null,"<10"]
["CH_5_10#",null,null,"Bei einer Aktivierung von weniger als 10% ist die Ausdrucksfähigkeit durch Schrift, Spache und Mimik ausgesprochen extrem problematisch."]
[null,"4. Herz-Chakra"]
["CH_4",null,"Chakren sind feinstoffliche Kraftwirbel, die unseren Körper mit Energie versorgen.\nDas 4. Chakra ist das Herzchakra. Dies ist das wichtigste. Es bezieht sich auf die Fähigkeit zu Lieben."]
[null,null,"<40"]
["CH_4_40",null,null,"Bei einer Aktivierung von unter 40% ist die Fähigkeit zur bedingungslosen Liebe oft gestört."]
[null,null,"<30"]
["CH_4_30",null,null,"Bei einer Aktivierung von unter 30% ist die Fähigkeit zur bedingungslosen Liebe sehr oft gestört."]
[null,null,"<20"]
["CH_4_20",null,null,"Bei einer Aktivierung von unter 20% ist die Fähigkeit zur bedingungslosen Liebe extrem oft gestört."]
[null,null,"<10"]
["CH_4_10",null,null,"Bei einer Aktivierung von unter 10% ist die Fähigkeit zur bedingungslosen Liebe ausgesprochen extrem oft gestört."]
[null,"3. Nabel-Chakra"]
["CH_3",null,"Chakren sind feinstoffliche Kraftwirbel, die unseren Körper mit Energie versorgen.\nDas 3. Chakra ist das Nabelchakra. Dies ist der Sitz unserer Emotionen. Man spricht auch vom Bauchgefühl als eine wichtige Quelle zur Orientierung."]
[null,null,"<40"]
["CH_3_40",null,null,"Bei einer Aktivierung von unter 40% sind unsere Gefühle als Quelle für Orientierungshilfen oft trügerisch. "]
[null,null,"<30"]
["CH_3_30",null,null,"Bei einer Aktivierung von unter 30% sind unsere Gefühle als Quelle für Orientierungshilfen sehr oft trügerisch. "]
[null,null,"<20"]
["CH_3_20",null,null,"Bei einer Aktivierung von unter 20% sind unsere Gefühle als Quelle für Orientierungshilfen extrem oft trügerisch. "]
[null,null,"<10"]
["CH_3_10",null,null,"Bei einer Aktivierung von unter 10% sind unsere Gefühle als Quelle für Orientierungshilfen ausgesprochen extrem oft trügerisch. "]
[null,"2.Sakralchakra"]
["CH_2",null,"Chakren sind feinstoffliche Kraftwirbel, die unseren Körper mit Energie versorgen.\nDas 2. Chakra ist das Sakralchakra. Dies besagt etwas über unsere Potenz. Die Fähigkeit zu Krativität und Innovation."]
[null,null,"<40"]
["CH_2_40",null,null,"Bei einer Aktivierung von unter 40% ist unsere Fähigkeit zur Kreativität und Innovation wenig vorhanden."]
[null,null,"<30"]
["CH_2_30",null,null,"Bei einer Aktivierung von unter 30% ist unsere Fähigkeit zur Kreativität und Innovation sehr wenig vorhanden."]
[null,null,"<20"]
["CH_2_20",null,null,"Bei einer Aktivierung von unter 20% ist unsere Fähigkeit zur Kreativität und Innovation extrem wenig vorhanden."]
[null,null,"<10"]
["CH_2_10",null,null,"Bei einer Aktivierung von unter 10% ist unsere Fähigkeit zur Kreativität und Innovation ausgesprochen extrem wenig vorhanden."]
[null,"1. Wurzel-Chakra"]
["CH_1",null,"Chakren sind feinstoffliche Kraftwirbel, die unseren Körper mit Energie versorgen.\nDas 1. Chakra ist das Wurzelchakra. An diesem Chakra können wir die organische Kraft und Stärke einer Person erkennen. "]
[null,null,"<40"]
["CH_1_40",null,null,"Bei einer Aktivierung von unter 40% kann man von einer schwachen Konstitution ausgehen."]
[null,null,"<30"]
["CH_1_30",null,null,"Bei einer Aktivierung von unter 30% kann man von einer sehr schwachen Konstitution ausgehen."]
[null,null,"<20"]
["CH_1_20",null,null,"Bei einer Aktivierung von unter 20% kann man von einer extrem schwachen Konstitution ausgehen."]
[null,null,"<10"]
["CH_1_10",null,null,"Bei einer Aktivierung von unter 10% kann man von einer ausgesprochen extrem schwachen Konstitution ausgehen."]